{"text_format":"1","workbook":"xlsx","n_sheets":6,"sheets":["LookUp","Start","Output","State","County","Place"],"not_rendered":{"charts":0,"images":0,"macros":1,"external_links":0,"defined_names":7,"comments":0,"pivot_tables":0},"unopened":[],"bounds":{"document_bytes":16777216,"sheet_cells":100000,"rows_first":2000,"rows_last":500,"rows_between":2000,"halvings":0,"cell_chars":16384,"cell_head_chars":4096},"cells_cut":0,"cells_raw":0,"read":"whole","date_system":"1900"}

{"sheet":"LookUp","index":0,"n_rows":47,"n_cols":6,"rows_kept":47,"cut":false,"hidden":true,"merged":[]}
["County","Local Gov Unit",null,null,null,"< 3,300"]
["Abbeville ",null,null,null,null,"3,301-10,000"]
["Aiken ",null,null,null,null,"10,001-50,000"]
["Allendale ",null,null,null,null,"50,001-100,000"]
["Anderson ",null,null,null,null,">100,000"]
["Bamberg "]
["Barnwell "]
["Beaufort "]
["Berkeley "]
["Calhoun "]
["Charleston "]
["Cherokee "]
["Chester "]
["Chesterfield "]
["Clarendon "]
["Colleton "]
["Darlington "]
["Dillon "]
["Dorchester "]
["Edgefield "]
["Fairfield "]
["Florence "]
["Georgetown "]
["Greenville "]
["Greenwood "]
["Hampton "]
["Horry "]
["Jasper "]
["Kershaw "]
["Lancaster "]
["Laurens "]
["Lee "]
["Lexington "]
["Marion "]
["Marlboro "]
["McCormick "]
["Newberry "]
["Oconee "]
["Orangeburg "]
["Pickens "]
["Richland "]
["Saluda "]
["Spartanburg "]
["Sumter "]
["Union "]
["Williamsburg "]
["York "]

{"sheet":"Start","index":1,"n_rows":3,"n_cols":2,"rows_kept":3,"cut":false,"hidden":false,"merged":[]}
[null,"SC Water Utility Viability Tool"]
[]
[null,"Updated January 2024"]

{"sheet":"Output","index":2,"n_rows":96,"n_cols":14,"rows_kept":96,"cut":false,"hidden":true,"merged":[[64,3,67,3],[64,4,67,4],[68,4,71,4],[68,3,71,3],[17,3,18,3],[20,3,21,3],[55,3,57,3],[55,4,57,4],[2,1,2,4],[1,1,1,4],[12,1,14,1],[20,1,21,1],[9,4,14,4],[17,4,21,4],[12,3,14,3],[9,3,10,3]]}
["SC Water Utility Viability Tool Results",null,"Date Completed: ",{"$f":"TODAY()","v":45320},"Version 1.1 \nJanuary 2024"]
["Utility Name",""]
["Viability Score",{"$f":"IF(SUM(H78:H80)>0,\"Incomplete Assessment\",SUM(D6:D72)/2)","v":"Incomplete Assessment"}]
[]
[null,"Benchmark","Response","Viability Points \nEarned","Maximum Potential Points",null,"Component Name"]
["Step 1. Infrastructure",null,null,{"$f":"SUM(D7:D27)","v":6},{"$f":"SUM(E7:E27)","v":6}]
["Primary System Service Population ","> 10,000",{"$f":"IF(G7=\"\",\"\",VLOOKUP(G7,N:O,2,0))","v":0},{"$f":"IF(OR(C7=\"< 3,300\",C7=\"3,301-10,000\",C7=\"\"),0,6)","v":6},6,null,"cb_systemsize",null,null,null,null,null,null,"tb_age_pumpingtreatment"]
["Services Provided","-",{"$f":"IF(G8=\"\",\"\",IF(AND(H8,J8),\"Water & Sewer\",IF(H8,\"Water Only\",IF(J8,\"Sewer Only\",\"\"))))","v":""},"-","-",null,"cb_waterservice",{"$f":"VLOOKUP($G8,$N:$O,2,0)","v":0},"cb_sewerservice",{"$f":"VLOOKUP($I8,$N:$O,2,0)","v":0},null,null,null,"tb_age_distribution"]
["Water Service",null,{"$f":"IF(G9=\"\",\"\",VLOOKUP(G9,N:O,2,0))","v":""},null,null,null,null,null,null,null,null,null,null,"tb_age_ww_pumping"]
["Age of the majority of the water distribution system: ",50,0,{"$f":"IF(C8=\"Water Only\",IF(OR(C10>B10,C11>B11),0,6),IF(C8=\"Sewer Only\",\"N/A\",\"See Below\"))","v":"See Below"},{"$f":"IF(C8=\"Water Only\",16,\"-\")","v":"-"},null,"tb_age_distribution",null,null,null,null,null,null,"tb_age_collection"]
["Age of the majority of the water pumping and/or treatment assets: ",30,0,null,null,null,"tb_age_pumpingtreatment",null,null,null,null,null,null,"UnemploymentState"]
["Has your water utility had any sanitary survey inspections in the past 5 years? ",null,"",null,null,null,null,null,null,null,null,null,null,"PopulationChange_Label"]
["Unsatisfactory sanitary survey inspections? ","Zero",0,{"$f":"IF(C8=\"Water Only\",IF(SUM(C13:C15)=0,10,IF(SUM(C13:C15)<2,5,0)),IF(C8=\"Sewer Only\",\"N/A\",\"See Combined Below\"))","v":"See Combined Below"},null,null,"tb_w_unsat_inspections",null,null,null,null,null,null,"MedianHouseIncome_Label"]
["Notices of Violation for major public health violations and/or water quality violations (not routine or M/R NOVs)",null,0,null,null,null,"tb_W_NOV",null,null,null,null,null,null,"PovertyRate_Label"]
["Consent or Administrative Orders? ",null,0,null,null,null,"tb_w_CAO",null,null,null,null,null,null,"UnemploymentRate_Label"]
["Monthly Residential Water Service Bill","-",0,null," ",null,"tb_WaterBill",null,null,null,null,null,null,"PopulationChangeUser"]
["Sewer Service",null,"",null,null,null,null,null,null,null,null,null,null,"MHIuser"]
["Age of the majority of the wastewater collection system: ",50,0,{"$f":"IF(C8=\"Sewer Only\",IF(OR(C18>B18,C19>B19),0,6),IF(C8=\"Water Only\",\"N/A\",\"See Below\"))","v":"See Below"},{"$f":"IF(C8=\"Sewer Only\",16,\"-\")","v":"-"},null,"tb_age_collection",null,null,null,null,null,null,"PovertyRateUser"]
["Age of the majority of the wastewater pumping and/or treatment assets: ",30,0,null,null,null,"tb_age_ww_pumping",null,null,null,null,null,null,"UnemploymentUser"]
["Has your wastewater utility had any compliance inspections in the past 5 years? ",null,"",null,null,null,null,null,null,null,null,null,null,"combo_County"]
["Notices of Violation for major public health violations and/or major sewer overflows (not routine or M/R NOVs)","Zero",0,{"$f":"IF(C8=\"Sewer Only\",IF(SUM(C21:C22)=0,MIN(10,16-D18),IF(SUM(C21:C22)<2,5,0)),IF(C8=\"Water Only\",\"N/A\",\"See Combined Below\"))","v":"See Combined Below"},null,null,"tb_ww_NOV",null,null,null,null,null,null,"combo_CityTown"]
["Consent or Administrative Orders? ",null,0,null,null,null,"tb_ww_CAO",null,null,null,null,null,null,"PopChange_Eq"]
["Monthly Residential Sewer Service Bill","-",0,null,null,null,"tb_SewerBill",null,null,null,null,null,null,"PopulationChangeState"]
["Water & Sewer Service",null,null,null,null,null,null,null,null,null,null,null,null,"PovertyRateState"]
["Combined Non-Compliance Issues","See above",{"$f":"IF(C8=\"Water & Sewer\",SUM(C21:C22,C13:C15),\"-\")","v":"-"},{"$f":"IF(C8=\"Water & Sewer\",IF(C25=0,10,IF(C25=1,5,0)),\"N/A\")","v":"N/A"},{"$f":"IF($C$8=\"Water & Sewer\",10,\"N/A\")","v":"N/A"},null,null,null,null,null,null,null,null,"MHIstate"]
["System Age (Distribution, Pumping, Collection, etc.)","See above","See above",{"$f":"IF(C8=\"Water & Sewer\",IF(OR(C10>30,C11>50,C18>30,C19>50),0,6),\"N/A\")","v":"N/A"},{"$f":"IF($C$8=\"Water & Sewer\",6,\"N/A\")","v":"N/A"},null,null,null,null,null,null,null,null,"MHI_eq"]
["Monthly Combined Service Bill","-",{"$f":"IF(G27=\"\",\"\",VLOOKUP(G27,N:O,2,0))","v":0},null,null,null,"tb_CombinedBill",null,null,null,null,null,null,"PR_Eq"]
["Step 2. Managerial/Operational",null,{"$f":"IF(G28=\"\",\"\",VLOOKUP(G28,N:O,2,0))","v":""},{"$f":"SUM(D29:D34)","v":2},{"$f":"SUM(E29:E34)","v":6},null,null,null,null,null,null,null,null,"U_eq"]
["Do you have a current capital improvement plan? ","Yes",{"$f":"IF(G29=\"\",\"\",IF(H29,\"Yes\",IF(J29,\"No\",IF(NOT(OR(H29,J29)),\"-\",\"Check\"))))","v":"-"},{"$f":"IF(C29=\"Yes\",E29,0)","v":0},1,null,"ob_CIP_yes",{"$f":"VLOOKUP(G29,N:O,2,0)","v":0},"ob_CIP_no",{"$f":"VLOOKUP(I29,N:O,2,0)","v":0},null,null,null,"ob_CIP_no"]
["Do you have an Asset Management Program? ","Yes",{"$f":"IF(G30=\"\",\"\",IF(H30,\"Yes\",IF(J30,\"No\",IF(NOT(OR(H30,J30)),\"-\",\"Check\"))))","v":"-"},{"$f":"IF(C30=\"Yes\",E30,0)","v":0},1,null,"ob_AMP_yes",{"$f":"VLOOKUP(G30,N:O,2,0)","v":0},"ob_AMP_no",{"$f":"VLOOKUP(I30,N:O,2,0)","v":0},null,null,null,"ob_CIP_yes"]
["Are your system assets mapped in a GIS System?","Yes",{"$f":"IF(G31=\"\",\"\",IF(H31,\"Yes\",IF(J31,\"No\",IF(NOT(OR(H31,J31)),\"-\",\"Check\"))))","v":"-"},{"$f":"IF(C31=\"Yes\",E31,0)","v":0},1,null,"ob_GIS_yes",{"$f":"VLOOKUP(G31,N:O,2,0)","v":0},"ob_GIS_no",{"$f":"VLOOKUP(I31,N:O,2,0)","v":0},null,null,null,"ob_AMP_no"]
["How many key staff positions within the organization are vacant and have been vacant for more than 3 months? ",0,{"$f":"IF(G32=\"\",\"\",VLOOKUP(G32,N:O,2,0))","v":0},{"$f":"IF(C32>0,0,E32)","v":1},1,null,"tb_keystaffvacant",{"$f":"VLOOKUP(G32,N:O,2,0)","v":0},null,null,null,null,null,"ob_AMP_yes"]
["How many seats on the governing body (board or council) are vacant and have been vacant for more than three months? ",0,{"$f":"IF(G33=\"\",\"\",VLOOKUP(G33,N:O,2,0))","v":0},{"$f":"IF(C33>0,0,E33)","v":1},1,null,"tb_councilvacant",{"$f":"VLOOKUP(G33,N:O,2,0)","v":0},null,null,null,null,null,"ob_GIS_no"]
["Have the current members of your governing body (board or council) received training related to operation and management of a utility in the last 2 years?",0,{"$f":"IF(G34=\"\",\"\",IF(H34,\"None\",IF(J34,\"Some\",IF(L34,\"All\",IF(NOT(OR(H34,J34,L34)),\"-\",\"Check\")))))","v":"-"},{"$f":"IF(C34=\"All\",E34,0)","v":0},1,null,"ob_training_no",{"$f":"VLOOKUP($G34,$N:$O,2,0)","v":0},"ob_training_some",{"$f":"VLOOKUP($I34,$N:$O,2,0)","v":0},"ob_training_all",{"$f":"VLOOKUP($K34,$N:$O,2,0)","v":0},null,"ob_GIS_yes"]
["Step 3. Socio-Economics",null,{"$f":"IF(G35=\"\",\"\",VLOOKUP(G35,N:O,2,0))","v":""},{"$f":"SUM(D36:D40)","v":0},{"$f":"SUM(E36:E40)","v":12},null,null,null,null,null,null,null,null,"tb_councilvacant"]
["Primary Utility Service Area","-",{"$f":"IF(G36=\"\",\"\",IF(H36<>0,H36,J36))","v":0},null,null,null,"combo_County",{"$f":"VLOOKUP($G36,$N:$O,2,0)","v":0},"combo_CityTown",{"$f":"VLOOKUP($I36,$N:$O,2,0)","v":0},null,null,null,"cb_keystaffvacant"]
["Population Change",{"$f":"J37","v":0},{"$f":"IF(G37=\"\",\"\",VLOOKUP(G37,N:O,2,0))/100","v":0},{"$f":"IF(C37>J37,E37,0)","v":0},3,null,"PopulationChangeUser",null,"PopulationChangeState",{"$f":"IF(I37=\"\",\"\",VLOOKUP(I37,N:O,2,0))/100","v":0},null,null,null,"cb_councilvacant"]
["Median Household  Income",{"$f":"J38","v":0},{"$f":"IF(G38=\"\",\"\",VLOOKUP(G38,N:O,2,0))","v":0},{"$f":"IF(C38>J38,E38,0)","v":0},3,null,"MHIuser",null,"MHIstate",{"$f":"IF(I38=\"\",\"\",VLOOKUP(I38,N:O,2,0))","v":0},null,null,null,"ob_training_no"]
["Poverty Rate",{"$f":"J39","v":0},{"$f":"IF(G39=\"\",\"\",VLOOKUP(G39,N:O,2,0))/100","v":0},{"$f":"IF(C39<J39,E39,0)","v":0},3,null,"PovertyRateUser",null,"PovertyRateState",{"$f":"IF(I39=\"\",\"\",VLOOKUP(I39,N:O,2,0))/100","v":0},null,null,null,"ob_training_some"]
["Unemployment Rate",{"$f":"J40","v":0},{"$f":"IF(G40=\"\",\"\",VLOOKUP(G40,N:O,2,0))/100","v":0},{"$f":"IF(C40<J40,E40,0)","v":0},3,null,"UnemploymentUser",null,"UnemploymentState",{"$f":"IF(I40=\"\",\"\",VLOOKUP(I40,N:O,2,0))/100","v":0},null,null,null,"ob_training_all"]
["Step 4. Financial",null,{"$f":"IF(G41=\"\",\"\",VLOOKUP(G41,N:O,2,0))","v":""},{"$f":"SUM(D42:D72)","v":25},60,null,null,null,null,null,null,null,null,"tb_keystaffvacant"]
["Step 4a. Balance Sheet",null,"",null,null,null,null,null,null,null,null,null,null,"CB_WaterService"]
["Unrestricted Cash","-",{"$f":"IF(VLOOKUP(G43,N:O,2,0)=\"\",\"-\",VLOOKUP(G43,N:O,2,0))","v":"-"},"-","-",null,"tb_unrestrictedcash",null,null,null,null,null,null,"CB_SewerService"]
["Total Outstanding Long Term Debt","-",{"$f":"IF(VLOOKUP(G44,N:O,2,0)=\"\",\"-\",VLOOKUP(G44,N:O,2,0))","v":"-"},"-","-",null,"tb_TOLTD",null,null,null,null,null,null,"tb_w_CAO"]
["Net Plant Assets","-",{"$f":"IF(VLOOKUP(G45,N:O,2,0)=\"\",\"-\",VLOOKUP(G45,N:O,2,0))","v":"-"},"-","-",null,"tb_NPA",null,null,null,null,null,null,"tb_Compliance"]
["Step 4b. Income Statement",null,"",null,null,null,null,null,null,null,null,null,null,"tb_w_NOV"]
["Operating Revenue","-",{"$f":"IF(VLOOKUP(G47,N:O,2,0)=\"\",\"-\",VLOOKUP(G47,N:O,2,0))","v":"-"},"-","-",null,"tb_Revenue",null,null,null,null,null,null,"tb_w_unsat_inspections"]
["Operating Expenses","-",{"$f":"IF(VLOOKUP(G48,N:O,2,0)=\"\",\"-\",VLOOKUP(G48,N:O,2,0))","v":"-"},"-","-",null,"tb_Expenses",null,null,null,null,null,null,"tb_mgmt"]
["Annual Depreciation Expense","-",{"$f":"IF(VLOOKUP(G49,N:O,2,0)=\"\",\"-\",VLOOKUP(G49,N:O,2,0))","v":"-"},"-","-",null,"tb_ADE",null,null,null,null,null,null,"cb_systemsize"]
["Change in Net Assets","Greater than $0","-",{"$f":"IF(C50>=0,E50,0)","v":5},5,null,"tb_change_in_net_assets",null,null,null,null,null,null,"tb_WaterBill"]
["Annual Interest Expense","-","-","-","-",null,"tb_annual_Interest_expense",null,null,null,null,null,null,"tb_SewerBill"]
["Step 4c. Statement of Cash Flows",null,"",null,null,null,null,null,null,null,null,null,null,"tb_CombinedBill"]
["Annual Debt Principal Payments","-",0,"-","-",null,"tb_ADSP",null,null,null,null,null,null,"tb_unrestrictedcash"]
["Step 4d. Fund Transfers",null,"",null,null,null,null,null,null,null,null,null,null,"tb_TOLTD"]
["Transfers to/from General ","None",{"$f":"IF(G55=\"\",\"\",IF(H55,\"Yes\",IF(J55,\"No\",IF(NOT(OR(H55,J55)),\"-\",\"Check\"))))","v":"-"},"-","-",null,"ob_transfers_yes",{"$f":"VLOOKUP($G55,$N:$O,2,0)","v":0},"ob_transfers_no",{"$f":"VLOOKUP($I55,$N:$O,2,0)","v":0},null,null,null,"tb_NPA"]
["Transfers from General ","None",{"$f":"IF(G56=\"\",\"\",IF(H56,\"Yes\",IF(J56,\"No\",IF(NOT(OR(H56,J56)),\"-\",\"Check\"))))","v":"-"},{"$f":"IF(AND(C56=\"No\",C57=\"No\",C58=\"No\"),5,IF(C56=\"Yes\",0,IF(C57=\"Yes\",2,IF(C58=\"Yes\",0))))","v":false},5,null,"ob_transfersfrom_yes",{"$f":"VLOOKUP($G56,$N:$O,2,0)","v":0},"ob_transfersfrom_no",{"$f":"VLOOKUP($I56,$N:$O,2,0)","v":0},null,null,null,"tb_revenue"]
["Transfers between 5% and 10% of Gross Revenues)","None",{"$f":"IF(G57=\"\",\"\",IF(H57,\"Yes\",IF(J57,\"No\",IF(NOT(OR(H57,J57)),\"-\",\"Check\"))))","v":"-"},null,null,null,"ob_transfers_to_5_yes",{"$f":"VLOOKUP($G57,$N:$O,2,0)","v":0},"ob_transfers_to_5_no",{"$f":"VLOOKUP($I57,$N:$O,2,0)","v":0},null,null,null,"tb_expenses"]
["Transfers Exceeding 10% of Gross Revenues","None",{"$f":"IF(G58=\"\",\"\",IF(H58,\"Yes\",IF(J58,\"No\",IF(NOT(OR(H58,J58)),\"-\",\"Check\"))))","v":"-"},null,null,null,"ob_transfers_to_10_yes",{"$f":"VLOOKUP($G58,$N:$O,2,0)","v":0},"ob_transfers_to_10_no",{"$f":"VLOOKUP($I58,$N:$O,2,0)","v":0},null,null,null,"tb_change_in_net_assets"]
["Step 4e. Calculation",null,{"$f":"IF(G59=\"\",\"\",VLOOKUP(G59,N:O,2,0))","v":""},null,null,null,null,null,null,null,null,null,null,"tb_ADE"]
["Debt Service Coverage",1.1000000000000001,0,{"$f":"IF(C60>B60,E60,0)","v":0},10,null,"tb_debtservicecoverage",null,null,null,null,null,null,"tb_debtservicecoverage"]
["Days Cash on Hand (Unrestricted)",90,0,{"$f":"IF(C61>B61,E61,0)","v":0},10,null,"tb_days_cash_on_hand",null,null,null,null,null,null,"tb_days_cash_on_hand"]
["Debt to Net Plant Assets",50,0,{"$f":"IF(C62<B62,E62,0)","v":5},5,null,"tb_debt_to_net_plant_assets",null,null,null,null,null,null,"tb_debt_to_net_plant_assets"]
["Asset Conditions",25,0,{"$f":"IF(C63>B63,E63,0)","v":0},5,null,"tb_asset_conditions",null,null,null,null,null,null,"tb_asset_conditions"]
["Free Cash Flow as % of Depreciation",50,0,{"$f":"IF(C64>B64,E64,0)","v":0},{"$f":"10-SUM(D56:D58)","v":10},null,"tb_freecashflow",null,null,null,null,null,null,"tb_freecashflow"]
["Annual Bill as % of MHI",null,"",{"$f":"IF(OR(C66>B66,C67>B67,C68>B68),0,E65)","v":10},10,null,null,null,null,null,null,null,null,"tb_StateBill_sewer"]
["Water",0.02,{"$f":"IFERROR(IF(G66=\"\",\"\",VLOOKUP(G66,N:O,2,0))/100,0)","v":0},null,null,null,"tb_BillpercentMHI_water",null,null,null,null,null,null,"tb_BillpercentMHI_water"]
["Sewer",0.02,{"$f":"IFERROR(IF(G67=\"\",\"\",VLOOKUP(G67,N:O,2,0))/100,0)","v":0},null,null,null,"tb_BillpercentMHI_sewer",null,null,null,null,null,null,"tb_BillpercentMHI_sewer"]
["Combined",0.04,{"$f":"IFERROR(IF(G68=\"\",\"\",VLOOKUP(G68,N:O,2,0))/100,0)","v":0},null,null,null,"tb_BillpercentMHI_combined",null,null,null,null,null,null,"tb_BillpercentMHI_combined"]
["State Benchmark",null,{"$f":"IF(G69=\"\",\"\",VLOOKUP(G69,N:O,2,0))","v":""},{"$f":"IF(OR(C70=\"Above 80th Percentile Benchmark\",C71=\"Above 80th Percentile Benchmark\",C72=\"Above 80th Percentile Benchmark\"),0,E69)","v":5},5,null,null,null,null,null,null,null,null,"tb_StateBill_Combined"]
["Water",{"$f":"IF(I70=\"\",\"\",VLOOKUP(I70,N:O,2,0))","v":0},{"$f":"IF(G70=\"\",\"\",VLOOKUP(G70,N:O,2,0))","v":0},null,null,null,"lb_SB_Water_Compare",null,"tb_StateBill_water",null,null,null,null,"tb_StateBill_water"]
["Sewer",{"$f":"IF(I71=\"\",\"\",VLOOKUP(I71,N:O,2,0))","v":0},{"$f":"IF(G71=\"\",\"\",VLOOKUP(G71,N:O,2,0))","v":0},null,null,null,"lb_SB_sewer_Compare",null,"tb_StateBill_sewer",null,null,null,null,"tb_annual_Interest_expense"]
["Combined",{"$f":"IF(I72=\"\",\"\",VLOOKUP(I72,N:O,2,0))","v":0},{"$f":"IF(G72=\"\",\"\",VLOOKUP(G72,N:O,2,0))","v":0},null,null,null,"lb_SB_Combined_Compare",null,"tb_StateBill_Combined",null,null,null,null,"tb_ADSP"]
[null,null,null,null,null,null,null,null,null,null,null,null,null,"cb_distribution"]
[null,null,null,null,null,null,null,null,null,null,null,null,null,"cb_water_pumping"]
[null,null,null,null,null,null,null,null,null,null,null,null,null,"cb_collection"]
[null,null,null,null,null,null,null,null,null,null,null,null,null,"cb_ww_pumping"]
[null,null,null,null,null,null,null,null,null,null,null,null,null,"tb_ww_CAO"]
[null,null,null,null,null,null,"step 4a",{"$f":"COUNTIF(C43:C45,\"-\")","v":3},null,null,null,null,null,"tb_ww_NOV"]
[null,null,null,null,null,null,"step 4b",{"$f":"COUNTIF(C47:C51,\"-\")","v":5},null,null,null,null,null,"ob_WW_inspection_yes"]
[null,null,null,null,null,null,"step 4c",{"$f":"COUNTIF(C55:C58,\"-\")","v":4},null,null,null,null,null,"ob_WW_inspection_no"]
[null,null,null,null,null,null,null,null,null,null,null,null,null,"lb_viabilityscorelabel"]
[null,null,null,null,null,null,null,null,null,null,null,null,null,"lb_Viability"]
[null,null,null,null,null,null,null,null,null,null,null,null,null,"ob_W_inspection_yes"]
[null,null,null,null,null,null,null,null,null,null,null,null,null,"ob_W_inspection_no"]
[null,null,null,null,null,null,null,null,null,null,null,null,null,"ob_transfers_no"]
[null,null,null,null,null,null,null,null,null,null,null,null,null,"ob_transfers_yes"]
[null,null,null,null,null,null,null,null,null,null,null,null,null,"ob_transfersfrom_no"]
[null,null,null,null,null,null,null,null,null,null,null,null,null,"ob_transfersfrom_yes"]
[null,null,null,null,null,null,null,null,null,null,null,null,null,"ob_transfers_to_5_no"]
[null,null,null,null,null,null,null,null,null,null,null,null,null,"ob_transfers_to_5_yes"]
[null,null,null,null,null,null,null,null,null,null,null,null,null,"ob_transfers_to_10_no"]
[null,null,null,null,null,null,null,null,null,null,null,null,null,"ob_transfers_to_10_yes"]
[null,null,null,null,null,null,null,null,null,null,null,null,null,"lb_incomplete"]
[null,null,null,null,null,null,null,null,null,null,null,null,null,"lb_SB_Water_Compare"]
[null,null,null,null,null,null,null,null,null,null,null,null,null,"lb_SB_Sewer_Compare"]
[null,null,null,null,null,null,null,null,null,null,null,null,null,"lb_SB_combined_Compare"]

{"sheet":"State","index":3,"n_rows":6,"n_cols":9,"rows_kept":6,"cut":false,"hidden":true,"merged":[[0,8,0,19],[3,1,3,3]]}
["Location","2021 Population Estimate","2022 Population Estimate","Pop Change","2022 Poverty Rate (All People)","Unemployment Rate 2022","Median Household Income 2022",null,"Data last pulled on 1/19/24 from Census.gov"]
["South Carolina",5078903,5142750,1.3091602475824393E-2,14.4,3.2,63623,null,"Unemployment Rates from SC Dept of Employment and Workforce Unemployment Rates (by County)"]
[null,null,null,null,null,null,null,null,"All other Data from Census.gov (ACS 5 Year Estimates Data Profiles (2022 and 2021))"]
[null,"State Bill Comparison\n (80th Percentile Benchmark)"]
[null,"Water","Sewer","Combined"]
[null,45.02,57.6,{"$f":"SUM(B6:C6)","v":102.62},null,null,null,null,"Benchmarks are from RIA's FY23 Rate Survey"]

{"sheet":"County","index":4,"n_rows":47,"n_cols":10,"rows_kept":47,"cut":false,"hidden":true,"merged":[[0,9,0,20]]}
["Location","2021 Population Estimate","2022 Population Estimate","Pop Change","2022 Poverty Rate (All People)","Old Unemployment Rate Column - do not use","Unemployment Rate 2022","Median Household Income 2022",null,"Data last pulled on 1/19/24 from Census.gov"]
["Abbeville County",24374,24368,{"$f":"(RawData[[#This Row],[2022 Population Estimate]]-RawData[[#This Row],[2021 Population Estimate]])/RawData[[#This Row],[2021 Population Estimate]]","v":-2.4616394518749488E-4},15.9,null,3.9,49759,null,"Unemployment Rates from SC Dept of Employment and Workforce Unemployment Rates (by County)"]
["Aiken County",168045,169865,{"$f":"(RawData[[#This Row],[2022 Population Estimate]]-RawData[[#This Row],[2021 Population Estimate]])/RawData[[#This Row],[2021 Population Estimate]]","v":1.0830432324674939E-2},14.2,null,3.2,63212,null,"All other Data from Census.gov (ACS 5 Year Estimates Data Profiles (2022 and 2021))"]
["Allendale County",8304,8073,{"$f":"(RawData[[#This Row],[2022 Population Estimate]]-RawData[[#This Row],[2021 Population Estimate]])/RawData[[#This Row],[2021 Population Estimate]]","v":-2.7817919075144509E-2},27.2,null,5.7,37096]
["Anderson County",202223,204592,{"$f":"(RawData[[#This Row],[2022 Population Estimate]]-RawData[[#This Row],[2021 Population Estimate]])/RawData[[#This Row],[2021 Population Estimate]]","v":1.1714790107950134E-2},14.3,null,3,62347]
["Bamberg County",13525,13311,{"$f":"(RawData[[#This Row],[2022 Population Estimate]]-RawData[[#This Row],[2021 Population Estimate]])/RawData[[#This Row],[2021 Population Estimate]]","v":-1.5822550831792976E-2},22.3,null,5.5,43920]
["Barnwell County",20801,20653,{"$f":"(RawData[[#This Row],[2022 Population Estimate]]-RawData[[#This Row],[2021 Population Estimate]])/RawData[[#This Row],[2021 Population Estimate]]","v":-7.1150425460314408E-3},25.3,null,4.7,42470]
["Beaufort County",186007,189071,{"$f":"(RawData[[#This Row],[2022 Population Estimate]]-RawData[[#This Row],[2021 Population Estimate]])/RawData[[#This Row],[2021 Population Estimate]]","v":1.6472498346836409E-2},10.4,null,3.1,81260]
["Berkeley County",224806,231419,{"$f":"(RawData[[#This Row],[2022 Population Estimate]]-RawData[[#This Row],[2021 Population Estimate]])/RawData[[#This Row],[2021 Population Estimate]]","v":2.9416474649253135E-2},10.9,null,3.1,77874]
["Calhoun County",14198,14145,{"$f":"(RawData[[#This Row],[2022 Population Estimate]]-RawData[[#This Row],[2021 Population Estimate]])/RawData[[#This Row],[2021 Population Estimate]]","v":-3.7329201295957177E-3},18.7,null,3.5,55550]
["Charleston County",404946,409840,{"$f":"(RawData[[#This Row],[2022 Population Estimate]]-RawData[[#This Row],[2021 Population Estimate]])/RawData[[#This Row],[2021 Population Estimate]]","v":1.2085562025554025E-2},12.3,null,2.8,78795]
["Cherokee County",56204,56200,{"$f":"(RawData[[#This Row],[2022 Population Estimate]]-RawData[[#This Row],[2021 Population Estimate]])/RawData[[#This Row],[2021 Population Estimate]]","v":-7.1169311792754967E-5},18,null,4.0999999999999996,47011]
["Chester County",32273,32171,{"$f":"(RawData[[#This Row],[2022 Population Estimate]]-RawData[[#This Row],[2021 Population Estimate]])/RawData[[#This Row],[2021 Population Estimate]]","v":-3.1605366715210859E-3},18.899999999999999,null,4.3,50022]
["Chesterfield County",43655,43536,{"$f":"(RawData[[#This Row],[2022 Population Estimate]]-RawData[[#This Row],[2021 Population Estimate]])/RawData[[#This Row],[2021 Population Estimate]]","v":-2.7259191387011797E-3},20.3,null,3.6,46326]
["Clarendon County",31613,31163,{"$f":"(RawData[[#This Row],[2022 Population Estimate]]-RawData[[#This Row],[2021 Population Estimate]])/RawData[[#This Row],[2021 Population Estimate]]","v":-1.4234650302090913E-2},19.5,null,4.0999999999999996,48677]
["Colleton County",38520,38561,{"$f":"(RawData[[#This Row],[2022 Population Estimate]]-RawData[[#This Row],[2021 Population Estimate]])/RawData[[#This Row],[2021 Population Estimate]]","v":1.0643821391484944E-3},16.600000000000001,null,3.5,46795]
["Darlington County",63433,63025,{"$f":"(RawData[[#This Row],[2022 Population Estimate]]-RawData[[#This Row],[2021 Population Estimate]])/RawData[[#This Row],[2021 Population Estimate]]","v":-6.4319833525136759E-3},20.2,null,3.5,44317]
["Dillon County",28527,28255,{"$f":"(RawData[[#This Row],[2022 Population Estimate]]-RawData[[#This Row],[2021 Population Estimate]])/RawData[[#This Row],[2021 Population Estimate]]","v":-9.5348266554492241E-3},31.6,null,4.5999999999999996,42454]
["Dorchester County",160180,162139,{"$f":"(RawData[[#This Row],[2022 Population Estimate]]-RawData[[#This Row],[2021 Population Estimate]])/RawData[[#This Row],[2021 Population Estimate]]","v":1.2229991259832687E-2},12.3,null,2.9,73686]
["Edgefield County",25938,26181,{"$f":"(RawData[[#This Row],[2022 Population Estimate]]-RawData[[#This Row],[2021 Population Estimate]])/RawData[[#This Row],[2021 Population Estimate]]","v":9.368494101318528E-3},17,null,3.3,60033]
["Fairfield County",21186,20942,{"$f":"(RawData[[#This Row],[2022 Population Estimate]]-RawData[[#This Row],[2021 Population Estimate]])/RawData[[#This Row],[2021 Population Estimate]]","v":-1.1517039554422731E-2},18.7,null,4.7,44521]
["Florence County",137276,137015,{"$f":"(RawData[[#This Row],[2022 Population Estimate]]-RawData[[#This Row],[2021 Population Estimate]])/RawData[[#This Row],[2021 Population Estimate]]","v":-1.9012791748011305E-3},17.8,null,3.2,56088]
["Georgetown County",62992,63594,{"$f":"(RawData[[#This Row],[2022 Population Estimate]]-RawData[[#This Row],[2021 Population Estimate]])/RawData[[#This Row],[2021 Population Estimate]]","v":9.5567691135382271E-3},16,null,3.7,59782]
["Greenville County",519178,528251,{"$f":"(RawData[[#This Row],[2022 Population Estimate]]-RawData[[#This Row],[2021 Population Estimate]])/RawData[[#This Row],[2021 Population Estimate]]","v":1.7475701975045166E-2},10.9,null,2.8,71328]
["Greenwood County",69338,69309,{"$f":"(RawData[[#This Row],[2022 Population Estimate]]-RawData[[#This Row],[2021 Population Estimate]])/RawData[[#This Row],[2021 Population Estimate]]","v":-4.1824107992731257E-4},17.3,null,3.7,47553]
["Hampton County",19227,18890,{"$f":"(RawData[[#This Row],[2022 Population Estimate]]-RawData[[#This Row],[2021 Population Estimate]])/RawData[[#This Row],[2021 Population Estimate]]","v":-1.7527435377333957E-2},20,null,2.9,40157]
["Horry County",344865,356578,{"$f":"(RawData[[#This Row],[2022 Population Estimate]]-RawData[[#This Row],[2021 Population Estimate]])/RawData[[#This Row],[2021 Population Estimate]]","v":3.3964014904382875E-2},13.1,null,3.9,59880]
["Jasper County",28363,29444,{"$f":"(RawData[[#This Row],[2022 Population Estimate]]-RawData[[#This Row],[2021 Population Estimate]])/RawData[[#This Row],[2021 Population Estimate]]","v":3.8113034587314458E-2},17.899999999999999,null,3.1,60452]
["Kershaw County",64989,65779,{"$f":"(RawData[[#This Row],[2022 Population Estimate]]-RawData[[#This Row],[2021 Population Estimate]])/RawData[[#This Row],[2021 Population Estimate]]","v":1.2155903306713444E-2},14.4,null,3.3,61343]
["Lancaster County",94653,97611,{"$f":"(RawData[[#This Row],[2022 Population Estimate]]-RawData[[#This Row],[2021 Population Estimate]])/RawData[[#This Row],[2021 Population Estimate]]","v":3.1250990459890333E-2},12.1,null,3.6,72186]
["Laurens County",67148,67456,{"$f":"(RawData[[#This Row],[2022 Population Estimate]]-RawData[[#This Row],[2021 Population Estimate]])/RawData[[#This Row],[2021 Population Estimate]]","v":4.5868827068564957E-3},18.8,null,3.4,52077]
["Lee County",16730,16557,{"$f":"(RawData[[#This Row],[2022 Population Estimate]]-RawData[[#This Row],[2021 Population Estimate]])/RawData[[#This Row],[2021 Population Estimate]]","v":-1.0340705319784817E-2},27.8,null,4.7,39099]
["Lexington County",291723,295934,{"$f":"(RawData[[#This Row],[2022 Population Estimate]]-RawData[[#This Row],[2021 Population Estimate]])/RawData[[#This Row],[2021 Population Estimate]]","v":1.4434926282809377E-2},11.6,null,2.7,71280]
["Marion County",29585,29212,{"$f":"(RawData[[#This Row],[2022 Population Estimate]]-RawData[[#This Row],[2021 Population Estimate]])/RawData[[#This Row],[2021 Population Estimate]]","v":-1.2607740408991043E-2},27.4,null,4.9000000000000004,35972]
["Marlboro County",26912,26585,{"$f":"(RawData[[#This Row],[2022 Population Estimate]]-RawData[[#This Row],[2021 Population Estimate]])/RawData[[#This Row],[2021 Population Estimate]]","v":-1.2150713436385255E-2},27.8,null,6.5,34275]
["McCormick County",9584,9612,{"$f":"(RawData[[#This Row],[2022 Population Estimate]]-RawData[[#This Row],[2021 Population Estimate]])/RawData[[#This Row],[2021 Population Estimate]]","v":2.9215358931552588E-3},16.7,null,3.6,55569]
["Newberry County",37842,37918,{"$f":"(RawData[[#This Row],[2022 Population Estimate]]-RawData[[#This Row],[2021 Population Estimate]])/RawData[[#This Row],[2021 Population Estimate]]","v":2.0083505100153267E-3},15.5,null,2.8,56706]
["Oconee County",77932,78775,{"$f":"(RawData[[#This Row],[2022 Population Estimate]]-RawData[[#This Row],[2021 Population Estimate]])/RawData[[#This Row],[2021 Population Estimate]]","v":1.0817122619719755E-2},15.7,null,3.1,56710]
["Orangeburg County",84909,84159,{"$f":"(RawData[[#This Row],[2022 Population Estimate]]-RawData[[#This Row],[2021 Population Estimate]])/RawData[[#This Row],[2021 Population Estimate]]","v":-8.8329859025544997E-3},25,null,5,41020]
["Pickens County",129617,131106,{"$f":"(RawData[[#This Row],[2022 Population Estimate]]-RawData[[#This Row],[2021 Population Estimate]])/RawData[[#This Row],[2021 Population Estimate]]","v":1.1487690657861238E-2},16.899999999999999,null,3.1,57628]
["Richland County",414719,416161,{"$f":"(RawData[[#This Row],[2022 Population Estimate]]-RawData[[#This Row],[2021 Population Estimate]])/RawData[[#This Row],[2021 Population Estimate]]","v":3.4770531371844551E-3},16.8,null,3.3,59850]
["Saluda County",19008,18952,{"$f":"(RawData[[#This Row],[2022 Population Estimate]]-RawData[[#This Row],[2021 Population Estimate]])/RawData[[#This Row],[2021 Population Estimate]]","v":-2.9461279461279462E-3},17.899999999999999,null,2.9,51041]
["Spartanburg County",322864,330119,{"$f":"(RawData[[#This Row],[2022 Population Estimate]]-RawData[[#This Row],[2021 Population Estimate]])/RawData[[#This Row],[2021 Population Estimate]]","v":2.2470761682937709E-2},14.4,null,3.1,61955]
["Sumter County",105537,105199,{"$f":"(RawData[[#This Row],[2022 Population Estimate]]-RawData[[#This Row],[2021 Population Estimate]])/RawData[[#This Row],[2021 Population Estimate]]","v":-3.2026682585254459E-3},16.399999999999999,null,3.8,53970]
["Union County",27306,27158,{"$f":"(RawData[[#This Row],[2022 Population Estimate]]-RawData[[#This Row],[2021 Population Estimate]])/RawData[[#This Row],[2021 Population Estimate]]","v":-5.4200542005420054E-3},21,null,4.7,42305]
["Williamsburg County",31279,30879,{"$f":"(RawData[[#This Row],[2022 Population Estimate]]-RawData[[#This Row],[2021 Population Estimate]])/RawData[[#This Row],[2021 Population Estimate]]","v":-1.2788132612935196E-2},23.5,null,4.8,40848]
["York County",276569,282987,{"$f":"(RawData[[#This Row],[2022 Population Estimate]]-RawData[[#This Row],[2021 Population Estimate]])/RawData[[#This Row],[2021 Population Estimate]]","v":2.3205782282179132E-2},8.4,null,3.1,80158]

{"sheet":"Place","index":5,"n_rows":398,"n_cols":11,"rows_kept":398,"cut":false,"hidden":true,"merged":[[0,10,0,21]]}
["Location","County","2021 Population Estimate","2022 Population Estimate","Pop Change","2022 Poverty Rate (All People)","Old Unemployment Rate Column - Do not use","Unemployment Rate 2022","Median Household Income 2022",null,"Data last pulled on 1/19/24 from Census.gov"]
["Abbeville city","Abbeville County",4902,4892,{"$f":"(RawData3[[#This Row],[2022 Population Estimate]]-RawData3[[#This Row],[2021 Population Estimate]])/RawData3[[#This Row],[2021 Population Estimate]]","v":-2.0399836801305591E-3},29.7,null,3.9,41025,null,"Unemployment Rates from SC Dept of Employment and Workforce Unemployment Rates (by County)"]
["Aiken city","Aiken County",31516,32014,{"$f":"(RawData3[[#This Row],[2022 Population Estimate]]-RawData3[[#This Row],[2021 Population Estimate]])/RawData3[[#This Row],[2021 Population Estimate]]","v":1.5801497651986292E-2},16,null,3.5,65712,null,"All other Data from Census.gov (ACS 5 Year Estimates Data Profiles (2022 and 2021))"]
["Alcolu CDP","Clarendon County",388,385,{"$f":"(RawData3[[#This Row],[2022 Population Estimate]]-RawData3[[#This Row],[2021 Population Estimate]])/RawData3[[#This Row],[2021 Population Estimate]]","v":-7.7319587628865982E-3},55.1,null,4.0999999999999996,26840]
["Allendale town","Allendale County",2827,2702,{"$f":"(RawData3[[#This Row],[2022 Population Estimate]]-RawData3[[#This Row],[2021 Population Estimate]])/RawData3[[#This Row],[2021 Population Estimate]]","v":-4.421648390519986E-2},43.3,null,5.7,19921]
["Anderson city","Anderson County",28796,29345,{"$f":"(RawData3[[#This Row],[2022 Population Estimate]]-RawData3[[#This Row],[2021 Population Estimate]])/RawData3[[#This Row],[2021 Population Estimate]]","v":1.9065147937213502E-2},25.1,null,3.4,40445]
["Andrews town","Williamsburg County",2721,3617,{"$f":"(RawData3[[#This Row],[2022 Population Estimate]]-RawData3[[#This Row],[2021 Population Estimate]])/RawData3[[#This Row],[2021 Population Estimate]]","v":0.32929070194781329},35.5,null,4.8,42337]
["Antreville CDP","Abbeville County",242,286,{"$f":"(RawData3[[#This Row],[2022 Population Estimate]]-RawData3[[#This Row],[2021 Population Estimate]])/RawData3[[#This Row],[2021 Population Estimate]]","v":0.18181818181818182},35,null,3.9,49759]
["Arcadia CDP","Spartanburg County",3397,2846,{"$f":"(RawData3[[#This Row],[2022 Population Estimate]]-RawData3[[#This Row],[2021 Population Estimate]])/RawData3[[#This Row],[2021 Population Estimate]]","v":-0.16220194289078599},35.299999999999997,null,3.1,39931]
["Arcadia Lakes town","Richland County",724,871,{"$f":"(RawData3[[#This Row],[2022 Population Estimate]]-RawData3[[#This Row],[2021 Population Estimate]])/RawData3[[#This Row],[2021 Population Estimate]]","v":0.20303867403314918},3.1,null,3.3,100625]
["Arial CDP","Pickens County",1969,1750,{"$f":"(RawData3[[#This Row],[2022 Population Estimate]]-RawData3[[#This Row],[2021 Population Estimate]])/RawData3[[#This Row],[2021 Population Estimate]]","v":-0.11122397155916709},12.3,null,3.1,54453]
["Atlantic Beach town","Horry County",299,332,{"$f":"(RawData3[[#This Row],[2022 Population Estimate]]-RawData3[[#This Row],[2021 Population Estimate]])/RawData3[[#This Row],[2021 Population Estimate]]","v":0.11036789297658862},41.6,null,3.9,35000]
["Awendaw town","Charleston County",1585,1548,{"$f":"(RawData3[[#This Row],[2022 Population Estimate]]-RawData3[[#This Row],[2021 Population Estimate]])/RawData3[[#This Row],[2021 Population Estimate]]","v":-2.334384858044164E-2},15.9,null,2.8,63533]
["Aynor town","Horry County",951,989,{"$f":"(RawData3[[#This Row],[2022 Population Estimate]]-RawData3[[#This Row],[2021 Population Estimate]])/RawData3[[#This Row],[2021 Population Estimate]]","v":3.9957939011566773E-2},9.1999999999999993,null,3.9,70227]
["Bamberg town","Bamberg County",3103,3074,{"$f":"(RawData3[[#This Row],[2022 Population Estimate]]-RawData3[[#This Row],[2021 Population Estimate]])/RawData3[[#This Row],[2021 Population Estimate]]","v":-9.3457943925233638E-3},39.700000000000003,null,5.5,27021]
["Barnwell city","Barnwell County",4526,4643,{"$f":"(RawData3[[#This Row],[2022 Population Estimate]]-RawData3[[#This Row],[2021 Population Estimate]])/RawData3[[#This Row],[2021 Population Estimate]]","v":2.5850640742377376E-2},35.9,null,4.7,38065]
["Batesburg-Leesville town","Saluda County",5322,5004,{"$f":"(RawData3[[#This Row],[2022 Population Estimate]]-RawData3[[#This Row],[2021 Population Estimate]])/RawData3[[#This Row],[2021 Population Estimate]]","v":-5.9751972942502819E-2},15.8,null,2.9,49807]
["Beaufort city","Beaufort County",12899,13582,{"$f":"(RawData3[[#This Row],[2022 Population Estimate]]-RawData3[[#This Row],[2021 Population Estimate]])/RawData3[[#This Row],[2021 Population Estimate]]","v":5.2949841072951392E-2},19.7,null,3.1,60366]
["Belton city","Anderson County",4320,4357,{"$f":"(RawData3[[#This Row],[2022 Population Estimate]]-RawData3[[#This Row],[2021 Population Estimate]])/RawData3[[#This Row],[2021 Population Estimate]]","v":8.564814814814815E-3},13.9,null,3,46713]
["Belvedere CDP","Aiken County",5330,5786,{"$f":"(RawData3[[#This Row],[2022 Population Estimate]]-RawData3[[#This Row],[2021 Population Estimate]])/RawData3[[#This Row],[2021 Population Estimate]]","v":8.5553470919324581E-2},21.5,null,3.2,46042]
["Bennettsville city","Marlboro County",7306,6975,{"$f":"(RawData3[[#This Row],[2022 Population Estimate]]-RawData3[[#This Row],[2021 Population Estimate]])/RawData3[[#This Row],[2021 Population Estimate]]","v":-4.5305228579249929E-2},27.1,null,6.5,37891]
["Berea CDP","Pickens County",15892,16184,{"$f":"(RawData3[[#This Row],[2022 Population Estimate]]-RawData3[[#This Row],[2021 Population Estimate]])/RawData3[[#This Row],[2021 Population Estimate]]","v":1.8374024666498866E-2},19.899999999999999,null,3.1,46393]
["Bethune town","Kershaw County",446,454,{"$f":"(RawData3[[#This Row],[2022 Population Estimate]]-RawData3[[#This Row],[2021 Population Estimate]])/RawData3[[#This Row],[2021 Population Estimate]]","v":1.7937219730941704E-2},33.700000000000003,null,3.3,40714]
["Bishopville city","Lee County",3042,2986,{"$f":"(RawData3[[#This Row],[2022 Population Estimate]]-RawData3[[#This Row],[2021 Population Estimate]])/RawData3[[#This Row],[2021 Population Estimate]]","v":-1.8408941485864562E-2},28.8,null,4.7,40909]
["Blacksburg town","Cherokee County",2390,2115,{"$f":"(RawData3[[#This Row],[2022 Population Estimate]]-RawData3[[#This Row],[2021 Population Estimate]])/RawData3[[#This Row],[2021 Population Estimate]]","v":-0.11506276150627615},31.5,null,4.0999999999999996,29564]
["Blackville town","Barnwell County",2135,2034,{"$f":"(RawData3[[#This Row],[2022 Population Estimate]]-RawData3[[#This Row],[2021 Population Estimate]])/RawData3[[#This Row],[2021 Population Estimate]]","v":-4.7306791569086654E-2},28.1,null,4.7,26667]
["Blenheim town","Marlboro County",96,63,{"$f":"(RawData3[[#This Row],[2022 Population Estimate]]-RawData3[[#This Row],[2021 Population Estimate]])/RawData3[[#This Row],[2021 Population Estimate]]","v":-0.34375},33.299999999999997,null,6.5,34275]
["Bluffton town","Beaufort County",27596,29375,{"$f":"(RawData3[[#This Row],[2022 Population Estimate]]-RawData3[[#This Row],[2021 Population Estimate]])/RawData3[[#This Row],[2021 Population Estimate]]","v":6.4465864618060587E-2},5.5,null,3.1,99575]
["Blythewood town","Fairfield County",4543,4890,{"$f":"(RawData3[[#This Row],[2022 Population Estimate]]-RawData3[[#This Row],[2021 Population Estimate]])/RawData3[[#This Row],[2021 Population Estimate]]","v":7.63812458727713E-2},4.2,null,4.7,100595]
["Boiling Springs CDP","Spartanburg County",10591,11191,{"$f":"(RawData3[[#This Row],[2022 Population Estimate]]-RawData3[[#This Row],[2021 Population Estimate]])/RawData3[[#This Row],[2021 Population Estimate]]","v":5.6651874232839204E-2},9.1,null,3.1,68993]
["Bonneau Beach CDP","Berkeley County",1045,1500,{"$f":"(RawData3[[#This Row],[2022 Population Estimate]]-RawData3[[#This Row],[2021 Population Estimate]])/RawData3[[#This Row],[2021 Population Estimate]]","v":0.4354066985645933},19.7,null,3.1,56635]
["Bonneau town","Berkeley County",889,582,{"$f":"(RawData3[[#This Row],[2022 Population Estimate]]-RawData3[[#This Row],[2021 Population Estimate]])/RawData3[[#This Row],[2021 Population Estimate]]","v":-0.34533183352080987},38.5,null,3.1,61528]
["Bowman town","Orangeburg County",820,652,{"$f":"(RawData3[[#This Row],[2022 Population Estimate]]-RawData3[[#This Row],[2021 Population Estimate]])/RawData3[[#This Row],[2021 Population Estimate]]","v":-0.20487804878048779},35.4,null,5,33250]
["Boykin CDP","Kershaw County",155,109,{"$f":"(RawData3[[#This Row],[2022 Population Estimate]]-RawData3[[#This Row],[2021 Population Estimate]])/RawData3[[#This Row],[2021 Population Estimate]]","v":-0.29677419354838708},0,null,3.3,128580]
["Bradley CDP","Greenwood County",139,163,{"$f":"(RawData3[[#This Row],[2022 Population Estimate]]-RawData3[[#This Row],[2021 Population Estimate]])/RawData3[[#This Row],[2021 Population Estimate]]","v":0.17266187050359713},66.900000000000006,null,3.7,42981]
["Branchville town","Orangeburg County",1158,1301,{"$f":"(RawData3[[#This Row],[2022 Population Estimate]]-RawData3[[#This Row],[2021 Population Estimate]])/RawData3[[#This Row],[2021 Population Estimate]]","v":0.1234887737478411},22.8,null,5,34486]
["Briarcliffe Acres town","Horry County",571,568,{"$f":"(RawData3[[#This Row],[2022 Population Estimate]]-RawData3[[#This Row],[2021 Population Estimate]])/RawData3[[#This Row],[2021 Population Estimate]]","v":-5.2539404553415062E-3},8.5,null,3.9,134375]
["Brookdale CDP","Orangeburg County",4221,4069,{"$f":"(RawData3[[#This Row],[2022 Population Estimate]]-RawData3[[#This Row],[2021 Population Estimate]])/RawData3[[#This Row],[2021 Population Estimate]]","v":-3.6010424070125564E-2},33.4,null,5,33406]
["Brunson town","Hampton County",518,525,{"$f":"(RawData3[[#This Row],[2022 Population Estimate]]-RawData3[[#This Row],[2021 Population Estimate]])/RawData3[[#This Row],[2021 Population Estimate]]","v":1.3513513513513514E-2},21.4,null,2.9,37542]
["Bucksport CDP","Horry County",698,744,{"$f":"(RawData3[[#This Row],[2022 Population Estimate]]-RawData3[[#This Row],[2021 Population Estimate]])/RawData3[[#This Row],[2021 Population Estimate]]","v":6.5902578796561598E-2},8.1,null,3.9,53438]
["Buffalo CDP","Union County",1330,1159,{"$f":"(RawData3[[#This Row],[2022 Population Estimate]]-RawData3[[#This Row],[2021 Population Estimate]])/RawData3[[#This Row],[2021 Population Estimate]]","v":-0.12857142857142856},38,null,4.7,19770]
["Burnettown town","Aiken County",3058,3052,{"$f":"(RawData3[[#This Row],[2022 Population Estimate]]-RawData3[[#This Row],[2021 Population Estimate]])/RawData3[[#This Row],[2021 Population Estimate]]","v":-1.9620667102681491E-3},28.8,null,3.2,32279]
["Burton CDP","Beaufort County",7818,7603,{"$f":"(RawData3[[#This Row],[2022 Population Estimate]]-RawData3[[#This Row],[2021 Population Estimate]])/RawData3[[#This Row],[2021 Population Estimate]]","v":-2.7500639549756969E-2},14,null,3.1,58390]
["Calhoun Falls town","Abbeville County",1878,1939,{"$f":"(RawData3[[#This Row],[2022 Population Estimate]]-RawData3[[#This Row],[2021 Population Estimate]])/RawData3[[#This Row],[2021 Population Estimate]]","v":3.2481363152289673E-2},21.8,null,3.9,30078]
["Camden city","Kershaw County",7666,7834,{"$f":"(RawData3[[#This Row],[2022 Population Estimate]]-RawData3[[#This Row],[2021 Population Estimate]])/RawData3[[#This Row],[2021 Population Estimate]]","v":2.1914949126010958E-2},17.899999999999999,null,3.3,54141]
["Cameron town","Calhoun County",484,486,{"$f":"(RawData3[[#This Row],[2022 Population Estimate]]-RawData3[[#This Row],[2021 Population Estimate]])/RawData3[[#This Row],[2021 Population Estimate]]","v":4.1322314049586778E-3},15,null,3.5,64821]
["Campobello town","Spartanburg County",681,866,{"$f":"(RawData3[[#This Row],[2022 Population Estimate]]-RawData3[[#This Row],[2021 Population Estimate]])/RawData3[[#This Row],[2021 Population Estimate]]","v":0.27165932452276065},7.5,null,3.1,85227]
["Cane Savannah CDP","Sumter County",1353,1534,{"$f":"(RawData3[[#This Row],[2022 Population Estimate]]-RawData3[[#This Row],[2021 Population Estimate]])/RawData3[[#This Row],[2021 Population Estimate]]","v":0.13377679231337769},3.2,null,3.8,67619]
["Carlisle town","Union County",563,526,{"$f":"(RawData3[[#This Row],[2022 Population Estimate]]-RawData3[[#This Row],[2021 Population Estimate]])/RawData3[[#This Row],[2021 Population Estimate]]","v":-6.5719360568383664E-2},13.9,null,4.7,49732]
["Catawba CDP","Chester County",1501,1439,{"$f":"(RawData3[[#This Row],[2022 Population Estimate]]-RawData3[[#This Row],[2021 Population Estimate]])/RawData3[[#This Row],[2021 Population Estimate]]","v":-4.1305796135909394E-2},26.6,null,4.3,50920]
["Cayce city","Lexington County",13637,13755,{"$f":"(RawData3[[#This Row],[2022 Population Estimate]]-RawData3[[#This Row],[2021 Population Estimate]])/RawData3[[#This Row],[2021 Population Estimate]]","v":8.6529295299552691E-3},17.899999999999999,null,2.7,56976]
["Centerville CDP","Anderson County",7276,7217,{"$f":"(RawData3[[#This Row],[2022 Population Estimate]]-RawData3[[#This Row],[2021 Population Estimate]])/RawData3[[#This Row],[2021 Population Estimate]]","v":-8.1088510170423313E-3},9.6999999999999993,null,3,71292]
["Central Pacolet town","Spartanburg County",254,194,{"$f":"(RawData3[[#This Row],[2022 Population Estimate]]-RawData3[[#This Row],[2021 Population Estimate]])/RawData3[[#This Row],[2021 Population Estimate]]","v":-0.23622047244094488},22.7,null,3.1,29750]
["Central town","Pickens County",5229,5272,{"$f":"(RawData3[[#This Row],[2022 Population Estimate]]-RawData3[[#This Row],[2021 Population Estimate]])/RawData3[[#This Row],[2021 Population Estimate]]","v":8.2233696691528021E-3},34.299999999999997,null,3.1,45909]
["Chapin town","Lexington County",1544,1543,{"$f":"(RawData3[[#This Row],[2022 Population Estimate]]-RawData3[[#This Row],[2021 Population Estimate]])/RawData3[[#This Row],[2021 Population Estimate]]","v":-6.4766839378238344E-4},5.7,null,2.7,77917]
["Charleston city","Dorchester County",147928,149960,{"$f":"(RawData3[[#This Row],[2022 Population Estimate]]-RawData3[[#This Row],[2021 Population Estimate]])/RawData3[[#This Row],[2021 Population Estimate]]","v":1.3736412308690714E-2},12.6,null,2.7,83891]
["Cheraw town","Chesterfield County",5090,5056,{"$f":"(RawData3[[#This Row],[2022 Population Estimate]]-RawData3[[#This Row],[2021 Population Estimate]])/RawData3[[#This Row],[2021 Population Estimate]]","v":-6.6797642436149315E-3},33.799999999999997,null,3.6,30658]
["Cherryvale CDP","Sumter County",2912,2843,{"$f":"(RawData3[[#This Row],[2022 Population Estimate]]-RawData3[[#This Row],[2021 Population Estimate]])/RawData3[[#This Row],[2021 Population Estimate]]","v":-2.3695054945054944E-2},20.7,null,3.8,39688]
["Chesnee city","Spartanburg County",679,597,{"$f":"(RawData3[[#This Row],[2022 Population Estimate]]-RawData3[[#This Row],[2021 Population Estimate]])/RawData3[[#This Row],[2021 Population Estimate]]","v":-0.12076583210603829},21.8,null,3.1,42727]
["Chester city","Chester County",5283,5260,{"$f":"(RawData3[[#This Row],[2022 Population Estimate]]-RawData3[[#This Row],[2021 Population Estimate]])/RawData3[[#This Row],[2021 Population Estimate]]","v":-4.353586977096347E-3},23.8,null,4.3,39951]
["Chesterfield town","Chesterfield County",1404,1424,{"$f":"(RawData3[[#This Row],[2022 Population Estimate]]-RawData3[[#This Row],[2021 Population Estimate]])/RawData3[[#This Row],[2021 Population Estimate]]","v":1.4245014245014245E-2},27.2,null,3.6,52232]
["City View CDP","Greenville County",1426,1696,{"$f":"(RawData3[[#This Row],[2022 Population Estimate]]-RawData3[[#This Row],[2021 Population Estimate]])/RawData3[[#This Row],[2021 Population Estimate]]","v":0.18934081346423562},47.5,null,2.8,71328]
["Clarks Hill CDP","McCormick County",116,78,{"$f":"(RawData3[[#This Row],[2022 Population Estimate]]-RawData3[[#This Row],[2021 Population Estimate]])/RawData3[[#This Row],[2021 Population Estimate]]","v":-0.32758620689655171},41,null,3.6,55569]
["Clearwater CDP","Aiken County",3985,3403,{"$f":"(RawData3[[#This Row],[2022 Population Estimate]]-RawData3[[#This Row],[2021 Population Estimate]])/RawData3[[#This Row],[2021 Population Estimate]]","v":-0.14604767879548305},12.3,null,3.2,52991]
["Clemson city","Anderson County",17238,17557,{"$f":"(RawData3[[#This Row],[2022 Population Estimate]]-RawData3[[#This Row],[2021 Population Estimate]])/RawData3[[#This Row],[2021 Population Estimate]]","v":1.8505627102912172E-2},36,null,3,50263]
["Clifton CDP","Spartanburg County",771,962,{"$f":"(RawData3[[#This Row],[2022 Population Estimate]]-RawData3[[#This Row],[2021 Population Estimate]])/RawData3[[#This Row],[2021 Population Estimate]]","v":0.24773022049286642},42.3,null,3.1,45386]
["Clinton city","Laurens County",7753,7624,{"$f":"(RawData3[[#This Row],[2022 Population Estimate]]-RawData3[[#This Row],[2021 Population Estimate]])/RawData3[[#This Row],[2021 Population Estimate]]","v":-1.6638720495292143E-2},25.8,null,3.4,38350]
["Clio town","Marlboro County",614,679,{"$f":"(RawData3[[#This Row],[2022 Population Estimate]]-RawData3[[#This Row],[2021 Population Estimate]])/RawData3[[#This Row],[2021 Population Estimate]]","v":0.10586319218241043},24.7,null,6.5,32847]
["Clover town","York County",6566,6800,{"$f":"(RawData3[[#This Row],[2022 Population Estimate]]-RawData3[[#This Row],[2021 Population Estimate]])/RawData3[[#This Row],[2021 Population Estimate]]","v":3.5638135851355467E-2},12,null,3.1,63649]
["Cokesbury CDP","Greenwood County",428,376,{"$f":"(RawData3[[#This Row],[2022 Population Estimate]]-RawData3[[#This Row],[2021 Population Estimate]])/RawData3[[#This Row],[2021 Population Estimate]]","v":-0.12149532710280374},0,null,3.7,47553]
["Columbia city","Lexington County",137276,136754,{"$f":"(RawData3[[#This Row],[2022 Population Estimate]]-RawData3[[#This Row],[2021 Population Estimate]])/RawData3[[#This Row],[2021 Population Estimate]]","v":-3.8025583496022609E-3},24.2,null,3.7,54095]
["Converse CDP","Spartanburg County",426,241,{"$f":"(RawData3[[#This Row],[2022 Population Estimate]]-RawData3[[#This Row],[2021 Population Estimate]])/RawData3[[#This Row],[2021 Population Estimate]]","v":-0.43427230046948356},13.7,null,3.1,61955]
["Conway city","Horry County",22001,25121,{"$f":"(RawData3[[#This Row],[2022 Population Estimate]]-RawData3[[#This Row],[2021 Population Estimate]])/RawData3[[#This Row],[2021 Population Estimate]]","v":0.14181173583018955},20.2,null,3.9,48161]
["Cope town","Orangeburg County",24,28,{"$f":"(RawData3[[#This Row],[2022 Population Estimate]]-RawData3[[#This Row],[2021 Population Estimate]])/RawData3[[#This Row],[2021 Population Estimate]]","v":0.16666666666666666},17.899999999999999,null,5,41875]
["Cordova town","Orangeburg County",174,214,{"$f":"(RawData3[[#This Row],[2022 Population Estimate]]-RawData3[[#This Row],[2021 Population Estimate]])/RawData3[[#This Row],[2021 Population Estimate]]","v":0.22988505747126436},11.2,null,5,49886]
["Coronaca CDP","Greenwood County",100,32,{"$f":"(RawData3[[#This Row],[2022 Population Estimate]]-RawData3[[#This Row],[2021 Population Estimate]])/RawData3[[#This Row],[2021 Population Estimate]]","v":-0.68},100,null,3.7,47553]
["Cottageville town","Colleton County",1155,1144,{"$f":"(RawData3[[#This Row],[2022 Population Estimate]]-RawData3[[#This Row],[2021 Population Estimate]])/RawData3[[#This Row],[2021 Population Estimate]]","v":-9.5238095238095247E-3},5.9,null,3.5,63977]
["Coward town","Florence County",612,568,{"$f":"(RawData3[[#This Row],[2022 Population Estimate]]-RawData3[[#This Row],[2021 Population Estimate]])/RawData3[[#This Row],[2021 Population Estimate]]","v":-7.1895424836601302E-2},28.5,null,3.2,47813]
["Cowpens town","Spartanburg County",1990,1862,{"$f":"(RawData3[[#This Row],[2022 Population Estimate]]-RawData3[[#This Row],[2021 Population Estimate]])/RawData3[[#This Row],[2021 Population Estimate]]","v":-6.4321608040201012E-2},33.6,null,3.1,36585]
["Cross Anchor CDP","Spartanburg County",51,25,{"$f":"(RawData3[[#This Row],[2022 Population Estimate]]-RawData3[[#This Row],[2021 Population Estimate]])/RawData3[[#This Row],[2021 Population Estimate]]","v":-0.50980392156862742},100,null,3.1,61955]
["Cross Hill town","Laurens County",553,522,{"$f":"(RawData3[[#This Row],[2022 Population Estimate]]-RawData3[[#This Row],[2021 Population Estimate]])/RawData3[[#This Row],[2021 Population Estimate]]","v":-5.6057866184448461E-2},16.3,null,3.4,39625]
["Dalzell CDP","Sumter County",3319,3417,{"$f":"(RawData3[[#This Row],[2022 Population Estimate]]-RawData3[[#This Row],[2021 Population Estimate]])/RawData3[[#This Row],[2021 Population Estimate]]","v":2.9526965953600482E-2},13.4,null,3.8,62159]
["Darlington city","Darlington County",6153,6172,{"$f":"(RawData3[[#This Row],[2022 Population Estimate]]-RawData3[[#This Row],[2021 Population Estimate]])/RawData3[[#This Row],[2021 Population Estimate]]","v":3.0879245896310741E-3},30.9,null,3.5,33750]
["Denmark city","Bamberg County",3186,3156,{"$f":"(RawData3[[#This Row],[2022 Population Estimate]]-RawData3[[#This Row],[2021 Population Estimate]])/RawData3[[#This Row],[2021 Population Estimate]]","v":-9.4161958568738224E-3},29.6,null,5.5,32679]
["Dentsville CDP","Richland County",15245,16399,{"$f":"(RawData3[[#This Row],[2022 Population Estimate]]-RawData3[[#This Row],[2021 Population Estimate]])/RawData3[[#This Row],[2021 Population Estimate]]","v":7.5696949819612988E-2},20.8,null,3.3,37590]
["Dillon city","Dillon County",6354,6454,{"$f":"(RawData3[[#This Row],[2022 Population Estimate]]-RawData3[[#This Row],[2021 Population Estimate]])/RawData3[[#This Row],[2021 Population Estimate]]","v":1.5738117721120555E-2},39.6,null,4.5999999999999996,34086]
["Donalds town","Abbeville County",348,374,{"$f":"(RawData3[[#This Row],[2022 Population Estimate]]-RawData3[[#This Row],[2021 Population Estimate]])/RawData3[[#This Row],[2021 Population Estimate]]","v":7.4712643678160925E-2},20.3,null,3.9,50000]
["Due West town","Abbeville County",1078,1148,{"$f":"(RawData3[[#This Row],[2022 Population Estimate]]-RawData3[[#This Row],[2021 Population Estimate]])/RawData3[[#This Row],[2021 Population Estimate]]","v":6.4935064935064929E-2},10.3,null,3.9,50417]
["Duncan town","Spartanburg County",3937,4053,{"$f":"(RawData3[[#This Row],[2022 Population Estimate]]-RawData3[[#This Row],[2021 Population Estimate]])/RawData3[[#This Row],[2021 Population Estimate]]","v":2.9464058928117855E-2},18.399999999999999,null,3.1,58112]
["Dunean CDP","Greenville County",3292,3427,{"$f":"(RawData3[[#This Row],[2022 Population Estimate]]-RawData3[[#This Row],[2021 Population Estimate]])/RawData3[[#This Row],[2021 Population Estimate]]","v":4.1008505467800729E-2},12.3,null,2.8,52500]
["Easley city","Anderson County",22643,23135,{"$f":"(RawData3[[#This Row],[2022 Population Estimate]]-RawData3[[#This Row],[2021 Population Estimate]])/RawData3[[#This Row],[2021 Population Estimate]]","v":2.172856953583889E-2},12.7,null,3,62551]
["East Gaffney CDP","Cherokee County",2773,2972,{"$f":"(RawData3[[#This Row],[2022 Population Estimate]]-RawData3[[#This Row],[2021 Population Estimate]])/RawData3[[#This Row],[2021 Population Estimate]]","v":7.1763433104940502E-2},26.4,null,4.0999999999999996,30758]
["East Sumter CDP","Sumter County",931,789,{"$f":"(RawData3[[#This Row],[2022 Population Estimate]]-RawData3[[#This Row],[2021 Population Estimate]])/RawData3[[#This Row],[2021 Population Estimate]]","v":-0.15252416756176154},28.7,null,3.8,53970]
["Eastover town","Richland County",564,616,{"$f":"(RawData3[[#This Row],[2022 Population Estimate]]-RawData3[[#This Row],[2021 Population Estimate]])/RawData3[[#This Row],[2021 Population Estimate]]","v":9.2198581560283682E-2},37.6,null,3.3,21620]
["Edgefield town","Edgefield County",4434,2504,{"$f":"(RawData3[[#This Row],[2022 Population Estimate]]-RawData3[[#This Row],[2021 Population Estimate]])/RawData3[[#This Row],[2021 Population Estimate]]","v":-0.43527289129454216},29.7,null,3.3,32200]
["Edisto Beach town","Charleston County",759,884,{"$f":"(RawData3[[#This Row],[2022 Population Estimate]]-RawData3[[#This Row],[2021 Population Estimate]])/RawData3[[#This Row],[2021 Population Estimate]]","v":0.16469038208168643},3.5,null,2.8,84063]
["Edisto CDP","Orangeburg County",1991,1904,{"$f":"(RawData3[[#This Row],[2022 Population Estimate]]-RawData3[[#This Row],[2021 Population Estimate]])/RawData3[[#This Row],[2021 Population Estimate]]","v":-4.3696634856855848E-2},24.6,null,5,44495]
["Ehrhardt town","Bamberg County",431,462,{"$f":"(RawData3[[#This Row],[2022 Population Estimate]]-RawData3[[#This Row],[2021 Population Estimate]])/RawData3[[#This Row],[2021 Population Estimate]]","v":7.1925754060324823E-2},5.6,null,5.5,35923]
["Elgin CDP","Lancaster County",2876,2882,{"$f":"(RawData3[[#This Row],[2022 Population Estimate]]-RawData3[[#This Row],[2021 Population Estimate]])/RawData3[[#This Row],[2021 Population Estimate]]","v":2.086230876216968E-3},6,null,3.6,72898]
["Elgin town","Kershaw County",1999,2065,{"$f":"(RawData3[[#This Row],[2022 Population Estimate]]-RawData3[[#This Row],[2021 Population Estimate]])/RawData3[[#This Row],[2021 Population Estimate]]","v":3.3016508254127067E-2},6.2,null,3.3,83611]
["Elko town","Barnwell County",242,213,{"$f":"(RawData3[[#This Row],[2022 Population Estimate]]-RawData3[[#This Row],[2021 Population Estimate]])/RawData3[[#This Row],[2021 Population Estimate]]","v":-0.11983471074380166},8.9,null,4.7,38854]
["Elloree town","Orangeburg County",980,993,{"$f":"(RawData3[[#This Row],[2022 Population Estimate]]-RawData3[[#This Row],[2021 Population Estimate]])/RawData3[[#This Row],[2021 Population Estimate]]","v":1.3265306122448979E-2},21.1,null,5,30967]
["Enoree CDP","Laurens County",468,441,{"$f":"(RawData3[[#This Row],[2022 Population Estimate]]-RawData3[[#This Row],[2021 Population Estimate]])/RawData3[[#This Row],[2021 Population Estimate]]","v":-5.7692307692307696E-2},41.5,null,3.4,52077]
["Estill town","Hampton County",2426,2230,{"$f":"(RawData3[[#This Row],[2022 Population Estimate]]-RawData3[[#This Row],[2021 Population Estimate]])/RawData3[[#This Row],[2021 Population Estimate]]","v":-8.0791426215993403E-2},34.799999999999997,null,2.9,33405]
["Eureka Mill CDP","Chester County",2036,1889,{"$f":"(RawData3[[#This Row],[2022 Population Estimate]]-RawData3[[#This Row],[2021 Population Estimate]])/RawData3[[#This Row],[2021 Population Estimate]]","v":-7.2200392927308454E-2},38.1,null,4.3,33802]
["Eutawville town","Orangeburg County",419,396,{"$f":"(RawData3[[#This Row],[2022 Population Estimate]]-RawData3[[#This Row],[2021 Population Estimate]])/RawData3[[#This Row],[2021 Population Estimate]]","v":-5.4892601431980909E-2},26.3,null,5,80000]
["Fair Play CDP","Anderson County",320,574,{"$f":"(RawData3[[#This Row],[2022 Population Estimate]]-RawData3[[#This Row],[2021 Population Estimate]])/RawData3[[#This Row],[2021 Population Estimate]]","v":0.79374999999999996},29.6,null,3,109511]
["Fairfax town","Hampton County",2142,2035,{"$f":"(RawData3[[#This Row],[2022 Population Estimate]]-RawData3[[#This Row],[2021 Population Estimate]])/RawData3[[#This Row],[2021 Population Estimate]]","v":-4.9953314659197015E-2},24.2,null,2.9,42760]
["Fairforest CDP","Spartanburg County",1565,1626,{"$f":"(RawData3[[#This Row],[2022 Population Estimate]]-RawData3[[#This Row],[2021 Population Estimate]])/RawData3[[#This Row],[2021 Population Estimate]]","v":3.8977635782747606E-2},22.4,null,3.1,49650]
["Fingerville CDP","Spartanburg County",49,99,{"$f":"(RawData3[[#This Row],[2022 Population Estimate]]-RawData3[[#This Row],[2021 Population Estimate]])/RawData3[[#This Row],[2021 Population Estimate]]","v":1.0204081632653061},79.8,null,3.1,61955]
["Five Forks CDP","Greenville County",19158,18592,{"$f":"(RawData3[[#This Row],[2022 Population Estimate]]-RawData3[[#This Row],[2021 Population Estimate]])/RawData3[[#This Row],[2021 Population Estimate]]","v":-2.9543793715419146E-2},2.2000000000000002,null,2.8,133750]
["Florence city","Florence County",39816,39931,{"$f":"(RawData3[[#This Row],[2022 Population Estimate]]-RawData3[[#This Row],[2021 Population Estimate]])/RawData3[[#This Row],[2021 Population Estimate]]","v":2.8882861161342176E-3},18.8,null,3.2,56031]
["Folly Beach city","Charleston County",1035,1020,{"$f":"(RawData3[[#This Row],[2022 Population Estimate]]-RawData3[[#This Row],[2021 Population Estimate]])/RawData3[[#This Row],[2021 Population Estimate]]","v":-1.4492753623188406E-2},16.7,null,2.8,88424]
["Forest Acres city","Richland County",10621,10514,{"$f":"(RawData3[[#This Row],[2022 Population Estimate]]-RawData3[[#This Row],[2021 Population Estimate]])/RawData3[[#This Row],[2021 Population Estimate]]","v":-1.0074380943413992E-2},9.6999999999999993,null,3.3,68110]
["Forestbrook CDP","Horry County",7256,7414,{"$f":"(RawData3[[#This Row],[2022 Population Estimate]]-RawData3[[#This Row],[2021 Population Estimate]])/RawData3[[#This Row],[2021 Population Estimate]]","v":2.1775082690187433E-2},7.8,null,3.9,66172]
["Fort Lawn town","Chester County",947,1149,{"$f":"(RawData3[[#This Row],[2022 Population Estimate]]-RawData3[[#This Row],[2021 Population Estimate]])/RawData3[[#This Row],[2021 Population Estimate]]","v":0.21330517423442449},11.2,null,4.3,49844]
["Fort Mill town","Lancaster County",24069,26022,{"$f":"(RawData3[[#This Row],[2022 Population Estimate]]-RawData3[[#This Row],[2021 Population Estimate]])/RawData3[[#This Row],[2021 Population Estimate]]","v":8.1141717562009219E-2},4.5999999999999996,null,2.7,128125]
["Fountain Inn city","Laurens County",10237,10675,{"$f":"(RawData3[[#This Row],[2022 Population Estimate]]-RawData3[[#This Row],[2021 Population Estimate]])/RawData3[[#This Row],[2021 Population Estimate]]","v":4.2785972452867048E-2},15.3,null,3.4,73665]
["Furman town","Hampton County",545,559,{"$f":"(RawData3[[#This Row],[2022 Population Estimate]]-RawData3[[#This Row],[2021 Population Estimate]])/RawData3[[#This Row],[2021 Population Estimate]]","v":2.5688073394495414E-2},2.9,null,2.9,77292]
["Gadsden CDP","Richland County",919,1373,{"$f":"(RawData3[[#This Row],[2022 Population Estimate]]-RawData3[[#This Row],[2021 Population Estimate]])/RawData3[[#This Row],[2021 Population Estimate]]","v":0.49401523394994562},23.5,null,3.3,36966]
["Gaffney city","Cherokee County",12560,12651,{"$f":"(RawData3[[#This Row],[2022 Population Estimate]]-RawData3[[#This Row],[2021 Population Estimate]])/RawData3[[#This Row],[2021 Population Estimate]]","v":7.2452229299363059E-3},23.1,null,4.0999999999999996,38059]
["Gantt CDP","Greenville County",14790,14276,{"$f":"(RawData3[[#This Row],[2022 Population Estimate]]-RawData3[[#This Row],[2021 Population Estimate]])/RawData3[[#This Row],[2021 Population Estimate]]","v":-3.4753211629479377E-2},29.4,null,2.8,43796]
["Garden City CDP","Horry County",10600,10885,{"$f":"(RawData3[[#This Row],[2022 Population Estimate]]-RawData3[[#This Row],[2021 Population Estimate]])/RawData3[[#This Row],[2021 Population Estimate]]","v":2.688679245283019E-2},11.4,null,3.9,51781]
["Gaston town","Lexington County",2089,1991,{"$f":"(RawData3[[#This Row],[2022 Population Estimate]]-RawData3[[#This Row],[2021 Population Estimate]])/RawData3[[#This Row],[2021 Population Estimate]]","v":-4.691239827668741E-2},24,null,2.7,55625]
["Gayle Mill CDP","Chester County",983,1082,{"$f":"(RawData3[[#This Row],[2022 Population Estimate]]-RawData3[[#This Row],[2021 Population Estimate]])/RawData3[[#This Row],[2021 Population Estimate]]","v":0.10071210579857579},24.4,null,4.3,74022]
["Georgetown city","Georgetown County",8435,8465,{"$f":"(RawData3[[#This Row],[2022 Population Estimate]]-RawData3[[#This Row],[2021 Population Estimate]])/RawData3[[#This Row],[2021 Population Estimate]]","v":3.5566093657379964E-3},15.5,null,3.7,50000]
["Gifford town","Hampton County",176,201,{"$f":"(RawData3[[#This Row],[2022 Population Estimate]]-RawData3[[#This Row],[2021 Population Estimate]])/RawData3[[#This Row],[2021 Population Estimate]]","v":0.14204545454545456},15.9,null,2.9,32833]
["Gilbert town","Lexington County",580,563,{"$f":"(RawData3[[#This Row],[2022 Population Estimate]]-RawData3[[#This Row],[2021 Population Estimate]])/RawData3[[#This Row],[2021 Population Estimate]]","v":-2.9310344827586206E-2},5,null,2.7,72500]
["Glendale CDP","Spartanburg County",275,254,{"$f":"(RawData3[[#This Row],[2022 Population Estimate]]-RawData3[[#This Row],[2021 Population Estimate]])/RawData3[[#This Row],[2021 Population Estimate]]","v":-7.636363636363637E-2},28,null,3.1,47917]
["Gloverville CDP","Aiken County",3102,3099,{"$f":"(RawData3[[#This Row],[2022 Population Estimate]]-RawData3[[#This Row],[2021 Population Estimate]])/RawData3[[#This Row],[2021 Population Estimate]]","v":-9.6711798839458415E-4},12.8,null,3.2,46643]
["Golden Grove CDP","Anderson County",3317,3282,{"$f":"(RawData3[[#This Row],[2022 Population Estimate]]-RawData3[[#This Row],[2021 Population Estimate]])/RawData3[[#This Row],[2021 Population Estimate]]","v":-1.0551703346397347E-2},10.7,null,3,67147]
["Goose Creek city","Berkeley County",44502,45858,{"$f":"(RawData3[[#This Row],[2022 Population Estimate]]-RawData3[[#This Row],[2021 Population Estimate]])/RawData3[[#This Row],[2021 Population Estimate]]","v":3.0470540649858432E-2},7.3,null,3.1,84041]
["Govan town","Bamberg County",55,56,{"$f":"(RawData3[[#This Row],[2022 Population Estimate]]-RawData3[[#This Row],[2021 Population Estimate]])/RawData3[[#This Row],[2021 Population Estimate]]","v":1.8181818181818181E-2},21.4,null,5.5,43920]
["Gramling CDP","Spartanburg County",60,79,{"$f":"(RawData3[[#This Row],[2022 Population Estimate]]-RawData3[[#This Row],[2021 Population Estimate]])/RawData3[[#This Row],[2021 Population Estimate]]","v":0.31666666666666665},0,null,3.1,61955]
["Graniteville CDP","Aiken County",2625,2465,{"$f":"(RawData3[[#This Row],[2022 Population Estimate]]-RawData3[[#This Row],[2021 Population Estimate]])/RawData3[[#This Row],[2021 Population Estimate]]","v":-6.0952380952380952E-2},29.8,null,3.2,32339]
["Gray Court town","Laurens County",796,778,{"$f":"(RawData3[[#This Row],[2022 Population Estimate]]-RawData3[[#This Row],[2021 Population Estimate]])/RawData3[[#This Row],[2021 Population Estimate]]","v":-2.2613065326633167E-2},21.9,null,3.4,45313]
["Great Falls town","Chester County",1860,1669,{"$f":"(RawData3[[#This Row],[2022 Population Estimate]]-RawData3[[#This Row],[2021 Population Estimate]])/RawData3[[#This Row],[2021 Population Estimate]]","v":-0.10268817204301076},34.6,null,4.3,28804]
["Greeleyville town","Williamsburg County",389,418,{"$f":"(RawData3[[#This Row],[2022 Population Estimate]]-RawData3[[#This Row],[2021 Population Estimate]])/RawData3[[#This Row],[2021 Population Estimate]]","v":7.4550128534704371E-2},24.9,null,4.8,40417]
["Greenville city","Greenville County",69725,70838,{"$f":"(RawData3[[#This Row],[2022 Population Estimate]]-RawData3[[#This Row],[2021 Population Estimate]])/RawData3[[#This Row],[2021 Population Estimate]]","v":1.596271064897813E-2},14.4,null,2.8,65519]
["Greenwood city","Greenwood County",22363,22528,{"$f":"(RawData3[[#This Row],[2022 Population Estimate]]-RawData3[[#This Row],[2021 Population Estimate]])/RawData3[[#This Row],[2021 Population Estimate]]","v":7.3782587309394985E-3},24.7,null,3.7,38884]
["Greer city","Greenville County",35151,37010,{"$f":"(RawData3[[#This Row],[2022 Population Estimate]]-RawData3[[#This Row],[2021 Population Estimate]])/RawData3[[#This Row],[2021 Population Estimate]]","v":5.2886119882791384E-2},10.6,null,2.5,73534]
["Hampton town","Hampton County",2907,2725,{"$f":"(RawData3[[#This Row],[2022 Population Estimate]]-RawData3[[#This Row],[2021 Population Estimate]])/RawData3[[#This Row],[2021 Population Estimate]]","v":-6.2607499140006878E-2},9.8000000000000007,null,2.9,50875]
["Hanahan city","Berkeley County",20381,20731,{"$f":"(RawData3[[#This Row],[2022 Population Estimate]]-RawData3[[#This Row],[2021 Population Estimate]])/RawData3[[#This Row],[2021 Population Estimate]]","v":1.717285707276385E-2},13,null,3.1,79305]
["Hardeeville city","Beaufort County",7228,8048,{"$f":"(RawData3[[#This Row],[2022 Population Estimate]]-RawData3[[#This Row],[2021 Population Estimate]])/RawData3[[#This Row],[2021 Population Estimate]]","v":0.11344770337576093},8.8000000000000007,null,3.1,75948]
["Harleyville town","Dorchester County",883,879,{"$f":"(RawData3[[#This Row],[2022 Population Estimate]]-RawData3[[#This Row],[2021 Population Estimate]])/RawData3[[#This Row],[2021 Population Estimate]]","v":-4.5300113250283129E-3},31.3,null,2.9,59595]
["Hartsville city","Darlington County",7565,7450,{"$f":"(RawData3[[#This Row],[2022 Population Estimate]]-RawData3[[#This Row],[2021 Population Estimate]])/RawData3[[#This Row],[2021 Population Estimate]]","v":-1.520158625247852E-2},26.8,null,3.5,46230]
["Heath Springs town","Lancaster County",745,800,{"$f":"(RawData3[[#This Row],[2022 Population Estimate]]-RawData3[[#This Row],[2021 Population Estimate]])/RawData3[[#This Row],[2021 Population Estimate]]","v":7.3825503355704702E-2},18.3,null,3.6,48462]
["Hemingway town","Williamsburg County",555,421,{"$f":"(RawData3[[#This Row],[2022 Population Estimate]]-RawData3[[#This Row],[2021 Population Estimate]])/RawData3[[#This Row],[2021 Population Estimate]]","v":-0.24144144144144145},7.7,null,4.8,36042]
["Hickory Grove town","York County",489,541,{"$f":"(RawData3[[#This Row],[2022 Population Estimate]]-RawData3[[#This Row],[2021 Population Estimate]])/RawData3[[#This Row],[2021 Population Estimate]]","v":0.10633946830265849},15.2,null,3.1,56250]
["Hilda town","Barnwell County",405,430,{"$f":"(RawData3[[#This Row],[2022 Population Estimate]]-RawData3[[#This Row],[2021 Population Estimate]])/RawData3[[#This Row],[2021 Population Estimate]]","v":6.1728395061728392E-2},28.6,null,4.7,32500]
["Hilton Head Island town","Beaufort County",38068,37708,{"$f":"(RawData3[[#This Row],[2022 Population Estimate]]-RawData3[[#This Row],[2021 Population Estimate]])/RawData3[[#This Row],[2021 Population Estimate]]","v":-9.4567615845329404E-3},7.6,null,2.7,93694]
["Hodges town","Greenwood County",164,173,{"$f":"(RawData3[[#This Row],[2022 Population Estimate]]-RawData3[[#This Row],[2021 Population Estimate]])/RawData3[[#This Row],[2021 Population Estimate]]","v":5.4878048780487805E-2},31.2,null,3.7,55357]
["Holly Hill town","Orangeburg County",1346,1384,{"$f":"(RawData3[[#This Row],[2022 Population Estimate]]-RawData3[[#This Row],[2021 Population Estimate]])/RawData3[[#This Row],[2021 Population Estimate]]","v":2.8231797919762259E-2},40,null,5,24185]
["Hollywood town","Dorchester County",5319,5397,{"$f":"(RawData3[[#This Row],[2022 Population Estimate]]-RawData3[[#This Row],[2021 Population Estimate]])/RawData3[[#This Row],[2021 Population Estimate]]","v":1.4664410603496898E-2},6.5,null,2.9,77191]
["Homeland Park CDP","Anderson County",6790,7451,{"$f":"(RawData3[[#This Row],[2022 Population Estimate]]-RawData3[[#This Row],[2021 Population Estimate]])/RawData3[[#This Row],[2021 Population Estimate]]","v":9.7349042709867453E-2},34.200000000000003,null,3,37308]
["Honea Path town","Anderson County",3659,3662,{"$f":"(RawData3[[#This Row],[2022 Population Estimate]]-RawData3[[#This Row],[2021 Population Estimate]])/RawData3[[#This Row],[2021 Population Estimate]]","v":8.1989614648811154E-4},23.1,null,3,50375]
["Hopkins CDP","Richland County",1757,1738,{"$f":"(RawData3[[#This Row],[2022 Population Estimate]]-RawData3[[#This Row],[2021 Population Estimate]])/RawData3[[#This Row],[2021 Population Estimate]]","v":-1.0813887307911212E-2},21.1,null,3.3,57262]
["India Hook CDP","York County",4092,4385,{"$f":"(RawData3[[#This Row],[2022 Population Estimate]]-RawData3[[#This Row],[2021 Population Estimate]])/RawData3[[#This Row],[2021 Population Estimate]]","v":7.1603128054740964E-2},2.2999999999999998,null,3.1,101616]
["Inman city","Spartanburg County",2896,2987,{"$f":"(RawData3[[#This Row],[2022 Population Estimate]]-RawData3[[#This Row],[2021 Population Estimate]])/RawData3[[#This Row],[2021 Population Estimate]]","v":3.142265193370166E-2},16.5,null,3.1,50938]
["Inman Mills CDP","Spartanburg County",782,956,{"$f":"(RawData3[[#This Row],[2022 Population Estimate]]-RawData3[[#This Row],[2021 Population Estimate]])/RawData3[[#This Row],[2021 Population Estimate]]","v":0.22250639386189258},2.9,null,3.1,41007]
["Irmo town","Lexington County",11581,11685,{"$f":"(RawData3[[#This Row],[2022 Population Estimate]]-RawData3[[#This Row],[2021 Population Estimate]])/RawData3[[#This Row],[2021 Population Estimate]]","v":8.9802262326223979E-3},6.6,null,2.7,77656]
["Irwin CDP","Lancaster County",1276,1868,{"$f":"(RawData3[[#This Row],[2022 Population Estimate]]-RawData3[[#This Row],[2021 Population Estimate]])/RawData3[[#This Row],[2021 Population Estimate]]","v":0.46394984326018807},41.1,null,3.6,40139]
["Islandton CDP","Colleton County",21,40,{"$f":"(RawData3[[#This Row],[2022 Population Estimate]]-RawData3[[#This Row],[2021 Population Estimate]])/RawData3[[#This Row],[2021 Population Estimate]]","v":0.90476190476190477},0,null,3.5,46795]
["Isle of Palms city","Charleston County",4318,4347,{"$f":"(RawData3[[#This Row],[2022 Population Estimate]]-RawData3[[#This Row],[2021 Population Estimate]])/RawData3[[#This Row],[2021 Population Estimate]]","v":6.716072255673923E-3},2.1,null,2.8,160417]
["Iva town","Anderson County",1253,1030,{"$f":"(RawData3[[#This Row],[2022 Population Estimate]]-RawData3[[#This Row],[2021 Population Estimate]])/RawData3[[#This Row],[2021 Population Estimate]]","v":-0.17797286512370311},33.9,null,3,22760]
["Jackson town","Aiken County",2024,1882,{"$f":"(RawData3[[#This Row],[2022 Population Estimate]]-RawData3[[#This Row],[2021 Population Estimate]])/RawData3[[#This Row],[2021 Population Estimate]]","v":-7.0158102766798416E-2},9.1,null,3.2,36632]
["Jacksonboro CDP","Colleton County",222,270,{"$f":"(RawData3[[#This Row],[2022 Population Estimate]]-RawData3[[#This Row],[2021 Population Estimate]])/RawData3[[#This Row],[2021 Population Estimate]]","v":0.21621621621621623},15.9,null,3.5,54896]
["James Island town","Charleston County",11618,11689,{"$f":"(RawData3[[#This Row],[2022 Population Estimate]]-RawData3[[#This Row],[2021 Population Estimate]])/RawData3[[#This Row],[2021 Population Estimate]]","v":6.1112067481494236E-3},4.0999999999999996,null,2.8,95364]
["Jamestown town","Berkeley County",91,78,{"$f":"(RawData3[[#This Row],[2022 Population Estimate]]-RawData3[[#This Row],[2021 Population Estimate]])/RawData3[[#This Row],[2021 Population Estimate]]","v":-0.14285714285714285},6.4,null,3.1,77874]
["Jefferson town","Chesterfield County",896,830,{"$f":"(RawData3[[#This Row],[2022 Population Estimate]]-RawData3[[#This Row],[2021 Population Estimate]])/RawData3[[#This Row],[2021 Population Estimate]]","v":-7.3660714285714288E-2},24.7,null,3.6,35208]
["Jenkinsville town","Fairfield County",22,54,{"$f":"(RawData3[[#This Row],[2022 Population Estimate]]-RawData3[[#This Row],[2021 Population Estimate]])/RawData3[[#This Row],[2021 Population Estimate]]","v":1.4545454545454546},51.9,null,4.7,35833]
["Joanna CDP","Laurens County",1470,1406,{"$f":"(RawData3[[#This Row],[2022 Population Estimate]]-RawData3[[#This Row],[2021 Population Estimate]])/RawData3[[#This Row],[2021 Population Estimate]]","v":-4.3537414965986392E-2},14.6,null,3.4,52381]
["Johnsonville city","Williamsburg County",1170,1108,{"$f":"(RawData3[[#This Row],[2022 Population Estimate]]-RawData3[[#This Row],[2021 Population Estimate]])/RawData3[[#This Row],[2021 Population Estimate]]","v":-5.2991452991452991E-2},24.5,null,4.8,46528]
["Johnston town","Edgefield County",2248,2375,{"$f":"(RawData3[[#This Row],[2022 Population Estimate]]-RawData3[[#This Row],[2021 Population Estimate]])/RawData3[[#This Row],[2021 Population Estimate]]","v":5.6494661921708184E-2},32.4,null,3.3,31910]
["Jonesville town","Union County",989,925,{"$f":"(RawData3[[#This Row],[2022 Population Estimate]]-RawData3[[#This Row],[2021 Population Estimate]])/RawData3[[#This Row],[2021 Population Estimate]]","v":-6.4711830131445908E-2},18.7,null,4.7,36023]
["Judson CDP","Greenville County",1513,1879,{"$f":"(RawData3[[#This Row],[2022 Population Estimate]]-RawData3[[#This Row],[2021 Population Estimate]])/RawData3[[#This Row],[2021 Population Estimate]]","v":0.24190350297422339},44.8,null,2.8,28207]
["Kershaw town","Lancaster County",2249,2311,{"$f":"(RawData3[[#This Row],[2022 Population Estimate]]-RawData3[[#This Row],[2021 Population Estimate]])/RawData3[[#This Row],[2021 Population Estimate]]","v":2.7567807914628723E-2},17,null,3.6,55481]
["Kiawah Island town","Charleston County",1964,2130,{"$f":"(RawData3[[#This Row],[2022 Population Estimate]]-RawData3[[#This Row],[2021 Population Estimate]])/RawData3[[#This Row],[2021 Population Estimate]]","v":8.45213849287169E-2},2.8,null,2.8,214250]
["Kingstree town","Williamsburg County",3244,3202,{"$f":"(RawData3[[#This Row],[2022 Population Estimate]]-RawData3[[#This Row],[2021 Population Estimate]])/RawData3[[#This Row],[2021 Population Estimate]]","v":-1.2946979038224414E-2},29.2,null,4.8,31227]
["Kline town","Barnwell County",202,195,{"$f":"(RawData3[[#This Row],[2022 Population Estimate]]-RawData3[[#This Row],[2021 Population Estimate]])/RawData3[[#This Row],[2021 Population Estimate]]","v":-3.4653465346534656E-2},2.1,null,4.7,53750]
["Ladson CDP","Dorchester County",14711,15298,{"$f":"(RawData3[[#This Row],[2022 Population Estimate]]-RawData3[[#This Row],[2021 Population Estimate]])/RawData3[[#This Row],[2021 Population Estimate]]","v":3.9902114064305619E-2},13,null,2.9,74020]
["Lake City city","Florence County",6028,6080,{"$f":"(RawData3[[#This Row],[2022 Population Estimate]]-RawData3[[#This Row],[2021 Population Estimate]])/RawData3[[#This Row],[2021 Population Estimate]]","v":8.6264100862641011E-3},22.4,null,3.2,37013]
["Lake Murray of Richland CDP","Lexington County",6632,6914,{"$f":"(RawData3[[#This Row],[2022 Population Estimate]]-RawData3[[#This Row],[2021 Population Estimate]])/RawData3[[#This Row],[2021 Population Estimate]]","v":4.2521109770808203E-2},0.9,null,2.7,111477]
["Lake Secession CDP","Anderson County",1121,1246,{"$f":"(RawData3[[#This Row],[2022 Population Estimate]]-RawData3[[#This Row],[2021 Population Estimate]])/RawData3[[#This Row],[2021 Population Estimate]]","v":0.11150758251561106},5.9,null,3,45759]
["Lake View town","Dillon County",665,702,{"$f":"(RawData3[[#This Row],[2022 Population Estimate]]-RawData3[[#This Row],[2021 Population Estimate]])/RawData3[[#This Row],[2021 Population Estimate]]","v":5.5639097744360905E-2},32.4,null,4.5999999999999996,24853]
["Lake Wylie CDP","York County",13560,14382,{"$f":"(RawData3[[#This Row],[2022 Population Estimate]]-RawData3[[#This Row],[2021 Population Estimate]])/RawData3[[#This Row],[2021 Population Estimate]]","v":6.0619469026548675E-2},8.1,null,3.1,111424]
["Lakewood CDP","Sumter County",2862,3135,{"$f":"(RawData3[[#This Row],[2022 Population Estimate]]-RawData3[[#This Row],[2021 Population Estimate]])/RawData3[[#This Row],[2021 Population Estimate]]","v":9.5387840670859536E-2},10.4,null,3.8,47290]
["Lamar town","Darlington County",1074,1217,{"$f":"(RawData3[[#This Row],[2022 Population Estimate]]-RawData3[[#This Row],[2021 Population Estimate]])/RawData3[[#This Row],[2021 Population Estimate]]","v":0.13314711359404097},26.8,null,3.5,40489]
["Lancaster city","Lancaster County",8489,8592,{"$f":"(RawData3[[#This Row],[2022 Population Estimate]]-RawData3[[#This Row],[2021 Population Estimate]])/RawData3[[#This Row],[2021 Population Estimate]]","v":1.2133349039934032E-2},31.6,null,3.6,37714]
["Landrum city","Spartanburg County",2465,2504,{"$f":"(RawData3[[#This Row],[2022 Population Estimate]]-RawData3[[#This Row],[2021 Population Estimate]])/RawData3[[#This Row],[2021 Population Estimate]]","v":1.5821501014198783E-2},13.5,null,3.1,41414]
["Lane town","Williamsburg County",447,539,{"$f":"(RawData3[[#This Row],[2022 Population Estimate]]-RawData3[[#This Row],[2021 Population Estimate]])/RawData3[[#This Row],[2021 Population Estimate]]","v":0.2058165548098434},10.9,null,4.8,35658]
["Langley CDP","Aiken County",1975,1776,{"$f":"(RawData3[[#This Row],[2022 Population Estimate]]-RawData3[[#This Row],[2021 Population Estimate]])/RawData3[[#This Row],[2021 Population Estimate]]","v":-0.10075949367088607},30.2,null,3.2,47848]
["Latta town","Dillon County",1632,1519,{"$f":"(RawData3[[#This Row],[2022 Population Estimate]]-RawData3[[#This Row],[2021 Population Estimate]])/RawData3[[#This Row],[2021 Population Estimate]]","v":-6.9240196078431376E-2},22.5,null,4.5999999999999996,44330]
["Laurel Bay CDP","Beaufort County",5926,5513,{"$f":"(RawData3[[#This Row],[2022 Population Estimate]]-RawData3[[#This Row],[2021 Population Estimate]])/RawData3[[#This Row],[2021 Population Estimate]]","v":-6.969287883901451E-2},12.5,null,3.1,55658]
["Laurens city","Laurens County",9251,9276,{"$f":"(RawData3[[#This Row],[2022 Population Estimate]]-RawData3[[#This Row],[2021 Population Estimate]])/RawData3[[#This Row],[2021 Population Estimate]]","v":2.7024105502107881E-3},22.4,null,3.4,52585]
["Lesslie CDP","York County",3534,3114,{"$f":"(RawData3[[#This Row],[2022 Population Estimate]]-RawData3[[#This Row],[2021 Population Estimate]])/RawData3[[#This Row],[2021 Population Estimate]]","v":-0.11884550084889643},4.3,null,3.1,77500]
["Lexington town","Lexington County",23068,23665,{"$f":"(RawData3[[#This Row],[2022 Population Estimate]]-RawData3[[#This Row],[2021 Population Estimate]])/RawData3[[#This Row],[2021 Population Estimate]]","v":2.5880006936015259E-2},8.3000000000000007,null,2.7,78164]
["Liberty city","Pickens County",3349,3329,{"$f":"(RawData3[[#This Row],[2022 Population Estimate]]-RawData3[[#This Row],[2021 Population Estimate]])/RawData3[[#This Row],[2021 Population Estimate]]","v":-5.9719319199761124E-3},23.6,null,3.1,41898]
["Lincolnville town","Dorchester County",850,641,{"$f":"(RawData3[[#This Row],[2022 Population Estimate]]-RawData3[[#This Row],[2021 Population Estimate]])/RawData3[[#This Row],[2021 Population Estimate]]","v":-0.24588235294117647},23.6,null,2.9,41250]
["Little Mountain town","Newberry County",369,456,{"$f":"(RawData3[[#This Row],[2022 Population Estimate]]-RawData3[[#This Row],[2021 Population Estimate]])/RawData3[[#This Row],[2021 Population Estimate]]","v":0.23577235772357724},4.4000000000000004,null,2.8,88250]
["Little River CDP","Horry County",9929,9815,{"$f":"(RawData3[[#This Row],[2022 Population Estimate]]-RawData3[[#This Row],[2021 Population Estimate]])/RawData3[[#This Row],[2021 Population Estimate]]","v":-1.148151878336187E-2},10.4,null,3.9,60677]
["Livingston town","Orangeburg County",144,149,{"$f":"(RawData3[[#This Row],[2022 Population Estimate]]-RawData3[[#This Row],[2021 Population Estimate]])/RawData3[[#This Row],[2021 Population Estimate]]","v":3.4722222222222224E-2},10.7,null,5,43000]
["Lockhart town","Chester County",487,459,{"$f":"(RawData3[[#This Row],[2022 Population Estimate]]-RawData3[[#This Row],[2021 Population Estimate]])/RawData3[[#This Row],[2021 Population Estimate]]","v":-5.7494866529774126E-2},12,null,4.3,37273]
["Lodge town","Colleton County",168,170,{"$f":"(RawData3[[#This Row],[2022 Population Estimate]]-RawData3[[#This Row],[2021 Population Estimate]])/RawData3[[#This Row],[2021 Population Estimate]]","v":1.1904761904761904E-2},26.5,null,3.5,34938]
["Loris city","Horry County",2473,2513,{"$f":"(RawData3[[#This Row],[2022 Population Estimate]]-RawData3[[#This Row],[2021 Population Estimate]])/RawData3[[#This Row],[2021 Population Estimate]]","v":1.6174686615446826E-2},21.2,null,3.9,34564]
["Lowndesville town","Abbeville County",134,184,{"$f":"(RawData3[[#This Row],[2022 Population Estimate]]-RawData3[[#This Row],[2021 Population Estimate]])/RawData3[[#This Row],[2021 Population Estimate]]","v":0.37313432835820898},28.3,null,3.9,49759]
["Lowrys town","Chester County",241,297,{"$f":"(RawData3[[#This Row],[2022 Population Estimate]]-RawData3[[#This Row],[2021 Population Estimate]])/RawData3[[#This Row],[2021 Population Estimate]]","v":0.23236514522821577},14.1,null,4.3,57250]
["Lugoff CDP","Kershaw County",9127,9423,{"$f":"(RawData3[[#This Row],[2022 Population Estimate]]-RawData3[[#This Row],[2021 Population Estimate]])/RawData3[[#This Row],[2021 Population Estimate]]","v":3.2431247945655745E-2},15.1,null,3.3,57885]
["Luray town","Hampton County",91,176,{"$f":"(RawData3[[#This Row],[2022 Population Estimate]]-RawData3[[#This Row],[2021 Population Estimate]])/RawData3[[#This Row],[2021 Population Estimate]]","v":0.93406593406593408},5.0999999999999996,null,2.9,51705]
["Lydia CDP","Darlington County",324,227,{"$f":"(RawData3[[#This Row],[2022 Population Estimate]]-RawData3[[#This Row],[2021 Population Estimate]])/RawData3[[#This Row],[2021 Population Estimate]]","v":-0.29938271604938271},24.7,null,3.5,22060]
["Lyman town","Spartanburg County",5841,6099,{"$f":"(RawData3[[#This Row],[2022 Population Estimate]]-RawData3[[#This Row],[2021 Population Estimate]])/RawData3[[#This Row],[2021 Population Estimate]]","v":4.4170518746789934E-2},6.5,null,3.1,76723]
["Lynchburg town","Lee County",519,247,{"$f":"(RawData3[[#This Row],[2022 Population Estimate]]-RawData3[[#This Row],[2021 Population Estimate]])/RawData3[[#This Row],[2021 Population Estimate]]","v":-0.52408477842003853},60.3,null,4.7,21953]
["Manning city","Clarendon County",3919,3862,{"$f":"(RawData3[[#This Row],[2022 Population Estimate]]-RawData3[[#This Row],[2021 Population Estimate]])/RawData3[[#This Row],[2021 Population Estimate]]","v":-1.4544526664965552E-2},24.4,null,4.0999999999999996,27138]
["Marion city","Marion County",6472,6402,{"$f":"(RawData3[[#This Row],[2022 Population Estimate]]-RawData3[[#This Row],[2021 Population Estimate]])/RawData3[[#This Row],[2021 Population Estimate]]","v":-1.0815822002472188E-2},30.7,null,4.9000000000000004,28551]
["Mauldin city","Greenville County",24735,25267,{"$f":"(RawData3[[#This Row],[2022 Population Estimate]]-RawData3[[#This Row],[2021 Population Estimate]])/RawData3[[#This Row],[2021 Population Estimate]]","v":2.1507984637153831E-2},7.7,null,2.8,75565]
["Mayesville town","Sumter County",556,670,{"$f":"(RawData3[[#This Row],[2022 Population Estimate]]-RawData3[[#This Row],[2021 Population Estimate]])/RawData3[[#This Row],[2021 Population Estimate]]","v":0.20503597122302158},11.5,null,3.8,49712]
["Mayo CDP","Spartanburg County",1719,1925,{"$f":"(RawData3[[#This Row],[2022 Population Estimate]]-RawData3[[#This Row],[2021 Population Estimate]])/RawData3[[#This Row],[2021 Population Estimate]]","v":0.1198371146015125},2.8,null,3.1,48750]
["McBee town","Chesterfield County",875,1046,{"$f":"(RawData3[[#This Row],[2022 Population Estimate]]-RawData3[[#This Row],[2021 Population Estimate]])/RawData3[[#This Row],[2021 Population Estimate]]","v":0.19542857142857142},13.4,null,3.6,56964]
["McClellanville town","Charleston County",701,770,{"$f":"(RawData3[[#This Row],[2022 Population Estimate]]-RawData3[[#This Row],[2021 Population Estimate]])/RawData3[[#This Row],[2021 Population Estimate]]","v":9.843081312410841E-2},7.5,null,2.8,110000]
["McColl town","Marlboro County",1950,2304,{"$f":"(RawData3[[#This Row],[2022 Population Estimate]]-RawData3[[#This Row],[2021 Population Estimate]])/RawData3[[#This Row],[2021 Population Estimate]]","v":0.18153846153846154},25,null,6.5,35987]
["McConnells town","York County",284,323,{"$f":"(RawData3[[#This Row],[2022 Population Estimate]]-RawData3[[#This Row],[2021 Population Estimate]])/RawData3[[#This Row],[2021 Population Estimate]]","v":0.13732394366197184},11.6,null,3.1,83958]
["McCormick town","McCormick County",2936,2760,{"$f":"(RawData3[[#This Row],[2022 Population Estimate]]-RawData3[[#This Row],[2021 Population Estimate]])/RawData3[[#This Row],[2021 Population Estimate]]","v":-5.9945504087193457E-2},26.1,null,3.6,37568]
["Meggett town","Charleston County",1169,1348,{"$f":"(RawData3[[#This Row],[2022 Population Estimate]]-RawData3[[#This Row],[2021 Population Estimate]])/RawData3[[#This Row],[2021 Population Estimate]]","v":0.15312232677502138},8.1,null,2.8,91472]
["Modoc CDP","McCormick County",485,602,{"$f":"(RawData3[[#This Row],[2022 Population Estimate]]-RawData3[[#This Row],[2021 Population Estimate]])/RawData3[[#This Row],[2021 Population Estimate]]","v":0.24123711340206186},34.700000000000003,null,3.6,91316]
["Monarch Mill CDP","Union County",1528,1766,{"$f":"(RawData3[[#This Row],[2022 Population Estimate]]-RawData3[[#This Row],[2021 Population Estimate]])/RawData3[[#This Row],[2021 Population Estimate]]","v":0.15575916230366493},16.5,null,4.7,37500]
["Moncks Corner town","Berkeley County",12685,13456,{"$f":"(RawData3[[#This Row],[2022 Population Estimate]]-RawData3[[#This Row],[2021 Population Estimate]])/RawData3[[#This Row],[2021 Population Estimate]]","v":6.0780449349625544E-2},8.1,null,3.1,83079]
["Monetta town","Saluda County",264,184,{"$f":"(RawData3[[#This Row],[2022 Population Estimate]]-RawData3[[#This Row],[2021 Population Estimate]])/RawData3[[#This Row],[2021 Population Estimate]]","v":-0.30303030303030304},14.7,null,2.9,53438]
["Mount Carmel CDP","McCormick County",262,379,{"$f":"(RawData3[[#This Row],[2022 Population Estimate]]-RawData3[[#This Row],[2021 Population Estimate]])/RawData3[[#This Row],[2021 Population Estimate]]","v":0.44656488549618323},0,null,3.6,41715]
["Mount Croghan town","Chesterfield County",143,177,{"$f":"(RawData3[[#This Row],[2022 Population Estimate]]-RawData3[[#This Row],[2021 Population Estimate]])/RawData3[[#This Row],[2021 Population Estimate]]","v":0.23776223776223776},9,null,3.6,71875]
["Mount Pleasant town","Berkeley County",88900,90945,{"$f":"(RawData3[[#This Row],[2022 Population Estimate]]-RawData3[[#This Row],[2021 Population Estimate]])/RawData3[[#This Row],[2021 Population Estimate]]","v":2.3003374578177728E-2},5.8,null,2.2000000000000002,115167]
["Mountville CDP","Laurens County",66,135,{"$f":"(RawData3[[#This Row],[2022 Population Estimate]]-RawData3[[#This Row],[2021 Population Estimate]])/RawData3[[#This Row],[2021 Population Estimate]]","v":1.0454545454545454},7.4,null,3.4,"-"]
["Mulberry CDP","Sumter County",213,184,{"$f":"(RawData3[[#This Row],[2022 Population Estimate]]-RawData3[[#This Row],[2021 Population Estimate]])/RawData3[[#This Row],[2021 Population Estimate]]","v":-0.13615023474178403},4.4000000000000004,null,3.8,53970]
["Mullins city","Marion County",4068,4014,{"$f":"(RawData3[[#This Row],[2022 Population Estimate]]-RawData3[[#This Row],[2021 Population Estimate]])/RawData3[[#This Row],[2021 Population Estimate]]","v":-1.3274336283185841E-2},28.8,null,4.9000000000000004,38304]
["Murphys Estates CDP","Aiken County",1297,1477,{"$f":"(RawData3[[#This Row],[2022 Population Estimate]]-RawData3[[#This Row],[2021 Population Estimate]])/RawData3[[#This Row],[2021 Population Estimate]]","v":0.13878180416345412},17.399999999999999,null,3.2,73750]
["Murrells Inlet CDP","Horry County",9695,10297,{"$f":"(RawData3[[#This Row],[2022 Population Estimate]]-RawData3[[#This Row],[2021 Population Estimate]])/RawData3[[#This Row],[2021 Population Estimate]]","v":6.2093862815884478E-2},8.8000000000000007,null,3.9,71019]
["Myrtle Beach city","Horry County",35116,36064,{"$f":"(RawData3[[#This Row],[2022 Population Estimate]]-RawData3[[#This Row],[2021 Population Estimate]])/RawData3[[#This Row],[2021 Population Estimate]]","v":2.6996241029730039E-2},15.3,null,4,50558]
["Neeses town","Orangeburg County",316,370,{"$f":"(RawData3[[#This Row],[2022 Population Estimate]]-RawData3[[#This Row],[2021 Population Estimate]])/RawData3[[#This Row],[2021 Population Estimate]]","v":0.17088607594936708},19.7,null,5,38750]
["New Ellenton town","Aiken County",2423,2508,{"$f":"(RawData3[[#This Row],[2022 Population Estimate]]-RawData3[[#This Row],[2021 Population Estimate]])/RawData3[[#This Row],[2021 Population Estimate]]","v":3.5080478745356997E-2},12.8,null,3.2,56304]
["Newberry city","Newberry County",10496,10682,{"$f":"(RawData3[[#This Row],[2022 Population Estimate]]-RawData3[[#This Row],[2021 Population Estimate]])/RawData3[[#This Row],[2021 Population Estimate]]","v":1.7721036585365852E-2},26.7,null,2.8,47565]
["Newport CDP","York County",4441,4226,{"$f":"(RawData3[[#This Row],[2022 Population Estimate]]-RawData3[[#This Row],[2021 Population Estimate]])/RawData3[[#This Row],[2021 Population Estimate]]","v":-4.8412519702769649E-2},5.3,null,3.1,92083]
["Newry CDP","Oconee County",171,341,{"$f":"(RawData3[[#This Row],[2022 Population Estimate]]-RawData3[[#This Row],[2021 Population Estimate]])/RawData3[[#This Row],[2021 Population Estimate]]","v":0.99415204678362568},25.2,null,3.1,42550]
["Nichols town","Marion County",233,160,{"$f":"(RawData3[[#This Row],[2022 Population Estimate]]-RawData3[[#This Row],[2021 Population Estimate]])/RawData3[[#This Row],[2021 Population Estimate]]","v":-0.31330472103004292},17.5,null,4.9000000000000004,42981]
["Ninety Six town","Greenwood County",2389,2579,{"$f":"(RawData3[[#This Row],[2022 Population Estimate]]-RawData3[[#This Row],[2021 Population Estimate]])/RawData3[[#This Row],[2021 Population Estimate]]","v":7.9531184596065299E-2},13.9,null,3.7,55694]
["Norris town","Pickens County",727,737,{"$f":"(RawData3[[#This Row],[2022 Population Estimate]]-RawData3[[#This Row],[2021 Population Estimate]])/RawData3[[#This Row],[2021 Population Estimate]]","v":1.3755158184319119E-2},23.1,null,3.1,60750]
["North Augusta city","Aiken County",24013,24425,{"$f":"(RawData3[[#This Row],[2022 Population Estimate]]-RawData3[[#This Row],[2021 Population Estimate]])/RawData3[[#This Row],[2021 Population Estimate]]","v":1.7157373089576478E-2},8.1,null,3.2,85093]
["North Charleston city","Dorchester County",114542,115755,{"$f":"(RawData3[[#This Row],[2022 Population Estimate]]-RawData3[[#This Row],[2021 Population Estimate]])/RawData3[[#This Row],[2021 Population Estimate]]","v":1.0590001920692847E-2},16.5,null,3.2,58534]
["North Hartsville CDP","Darlington County",2646,3261,{"$f":"(RawData3[[#This Row],[2022 Population Estimate]]-RawData3[[#This Row],[2021 Population Estimate]])/RawData3[[#This Row],[2021 Population Estimate]]","v":0.23242630385487528},27.6,null,3.5,71000]
["North Myrtle Beach city","Horry County",18502,18850,{"$f":"(RawData3[[#This Row],[2022 Population Estimate]]-RawData3[[#This Row],[2021 Population Estimate]])/RawData3[[#This Row],[2021 Population Estimate]]","v":1.8808777429467086E-2},7,null,3.9,69792]
["North town","Orangeburg County",810,916,{"$f":"(RawData3[[#This Row],[2022 Population Estimate]]-RawData3[[#This Row],[2021 Population Estimate]])/RawData3[[#This Row],[2021 Population Estimate]]","v":0.1308641975308642},38.4,null,5,40069]
["Northlake CDP","Anderson County",3840,3989,{"$f":"(RawData3[[#This Row],[2022 Population Estimate]]-RawData3[[#This Row],[2021 Population Estimate]])/RawData3[[#This Row],[2021 Population Estimate]]","v":3.8802083333333334E-2},9.8000000000000007,null,3,93271]
["Norway town","Orangeburg County",376,325,{"$f":"(RawData3[[#This Row],[2022 Population Estimate]]-RawData3[[#This Row],[2021 Population Estimate]])/RawData3[[#This Row],[2021 Population Estimate]]","v":-0.13563829787234041},9.8000000000000007,null,5,45375]
["Oak Grove CDP","Lexington County",11803,11385,{"$f":"(RawData3[[#This Row],[2022 Population Estimate]]-RawData3[[#This Row],[2021 Population Estimate]])/RawData3[[#This Row],[2021 Population Estimate]]","v":-3.5414725069897485E-2},11.9,null,2.7,69475]
["Oakland CDP","Sumter County",1038,958,{"$f":"(RawData3[[#This Row],[2022 Population Estimate]]-RawData3[[#This Row],[2021 Population Estimate]])/RawData3[[#This Row],[2021 Population Estimate]]","v":-7.7071290944123308E-2},12.6,null,3.8,55104]
["Olanta town","Florence County",509,588,{"$f":"(RawData3[[#This Row],[2022 Population Estimate]]-RawData3[[#This Row],[2021 Population Estimate]])/RawData3[[#This Row],[2021 Population Estimate]]","v":0.15520628683693516},21.9,null,3.2,53438]
["Olar town","Bamberg County",203,179,{"$f":"(RawData3[[#This Row],[2022 Population Estimate]]-RawData3[[#This Row],[2021 Population Estimate]])/RawData3[[#This Row],[2021 Population Estimate]]","v":-0.11822660098522167},14,null,5.5,39375]
["Orangeburg city","Orangeburg County",12779,13220,{"$f":"(RawData3[[#This Row],[2022 Population Estimate]]-RawData3[[#This Row],[2021 Population Estimate]])/RawData3[[#This Row],[2021 Population Estimate]]","v":3.450974254636513E-2},34,null,5,29340]
["Oswego CDP","Sumter County",348,352,{"$f":"(RawData3[[#This Row],[2022 Population Estimate]]-RawData3[[#This Row],[2021 Population Estimate]])/RawData3[[#This Row],[2021 Population Estimate]]","v":1.1494252873563218E-2},64.5,null,3.8,52708]
["Pacolet town","Spartanburg County",2154,1970,{"$f":"(RawData3[[#This Row],[2022 Population Estimate]]-RawData3[[#This Row],[2021 Population Estimate]])/RawData3[[#This Row],[2021 Population Estimate]]","v":-8.5422469823584035E-2},15.2,null,3.1,44894]
["Pageland town","Chesterfield County",2854,2726,{"$f":"(RawData3[[#This Row],[2022 Population Estimate]]-RawData3[[#This Row],[2021 Population Estimate]])/RawData3[[#This Row],[2021 Population Estimate]]","v":-4.4849334267694461E-2},25.4,null,3.6,38634]
["Pamplico town","Florence County",1072,1073,{"$f":"(RawData3[[#This Row],[2022 Population Estimate]]-RawData3[[#This Row],[2021 Population Estimate]])/RawData3[[#This Row],[2021 Population Estimate]]","v":9.3283582089552237E-4},33.5,null,3.2,29125]
["Parker CDP","Pickens County",13019,12466,{"$f":"(RawData3[[#This Row],[2022 Population Estimate]]-RawData3[[#This Row],[2021 Population Estimate]])/RawData3[[#This Row],[2021 Population Estimate]]","v":-4.2476380674398954E-2},29.2,null,3.1,37431]
["Parksville town","McCormick County",153,104,{"$f":"(RawData3[[#This Row],[2022 Population Estimate]]-RawData3[[#This Row],[2021 Population Estimate]])/RawData3[[#This Row],[2021 Population Estimate]]","v":-0.3202614379084967},6.9,null,3.6,38281]
["Patrick town","Chesterfield County",397,500,{"$f":"(RawData3[[#This Row],[2022 Population Estimate]]-RawData3[[#This Row],[2021 Population Estimate]])/RawData3[[#This Row],[2021 Population Estimate]]","v":0.25944584382871538},30.4,null,3.6,30263]
["Pawleys Island town","Georgetown County",87,104,{"$f":"(RawData3[[#This Row],[2022 Population Estimate]]-RawData3[[#This Row],[2021 Population Estimate]])/RawData3[[#This Row],[2021 Population Estimate]]","v":0.19540229885057472},7.7,null,3.7,91250]
["Paxville town","Clarendon County",414,342,{"$f":"(RawData3[[#This Row],[2022 Population Estimate]]-RawData3[[#This Row],[2021 Population Estimate]])/RawData3[[#This Row],[2021 Population Estimate]]","v":-0.17391304347826086},14.9,null,4.0999999999999996,53000]
["Peak town","Newberry County",88,79,{"$f":"(RawData3[[#This Row],[2022 Population Estimate]]-RawData3[[#This Row],[2021 Population Estimate]])/RawData3[[#This Row],[2021 Population Estimate]]","v":-0.10227272727272728},11.4,null,2.8,65000]
["Pelion town","Lexington County",1090,1056,{"$f":"(RawData3[[#This Row],[2022 Population Estimate]]-RawData3[[#This Row],[2021 Population Estimate]])/RawData3[[#This Row],[2021 Population Estimate]]","v":-3.1192660550458717E-2},14.5,null,2.7,54966]
["Pelzer town","Anderson County",1335,1480,{"$f":"(RawData3[[#This Row],[2022 Population Estimate]]-RawData3[[#This Row],[2021 Population Estimate]])/RawData3[[#This Row],[2021 Population Estimate]]","v":0.10861423220973783},25.7,null,3,51193]
["Pendleton town","Anderson County",3447,3498,{"$f":"(RawData3[[#This Row],[2022 Population Estimate]]-RawData3[[#This Row],[2021 Population Estimate]])/RawData3[[#This Row],[2021 Population Estimate]]","v":1.4795474325500435E-2},20.399999999999999,null,3,63750]
["Perry town","Aiken County",243,288,{"$f":"(RawData3[[#This Row],[2022 Population Estimate]]-RawData3[[#This Row],[2021 Population Estimate]])/RawData3[[#This Row],[2021 Population Estimate]]","v":0.18518518518518517},34.700000000000003,null,3.2,32250]
["Pickens city","Pickens County",3326,3374,{"$f":"(RawData3[[#This Row],[2022 Population Estimate]]-RawData3[[#This Row],[2021 Population Estimate]])/RawData3[[#This Row],[2021 Population Estimate]]","v":1.4431749849669273E-2},18,null,3.1,43452]
["Piedmont CDP","Anderson County",5581,5510,{"$f":"(RawData3[[#This Row],[2022 Population Estimate]]-RawData3[[#This Row],[2021 Population Estimate]])/RawData3[[#This Row],[2021 Population Estimate]]","v":-1.2721734456190646E-2},26,null,3,49495]
["Pine Ridge town","Lexington County",2723,2687,{"$f":"(RawData3[[#This Row],[2022 Population Estimate]]-RawData3[[#This Row],[2021 Population Estimate]])/RawData3[[#This Row],[2021 Population Estimate]]","v":-1.3220712449504223E-2},13.5,null,2.7,74565]
["Pinewood town","Sumter County",764,790,{"$f":"(RawData3[[#This Row],[2022 Population Estimate]]-RawData3[[#This Row],[2021 Population Estimate]])/RawData3[[#This Row],[2021 Population Estimate]]","v":3.4031413612565446E-2},25.4,null,3.8,39792]
["Pinopolis CDP","Berkeley County",974,933,{"$f":"(RawData3[[#This Row],[2022 Population Estimate]]-RawData3[[#This Row],[2021 Population Estimate]])/RawData3[[#This Row],[2021 Population Estimate]]","v":-4.2094455852156057E-2},1.8,null,3.1,108611]
["Plum Branch town","McCormick County",84,76,{"$f":"(RawData3[[#This Row],[2022 Population Estimate]]-RawData3[[#This Row],[2021 Population Estimate]])/RawData3[[#This Row],[2021 Population Estimate]]","v":-9.5238095238095233E-2},13.2,null,3.6,140250]
["Pomaria town","Newberry County",101,91,{"$f":"(RawData3[[#This Row],[2022 Population Estimate]]-RawData3[[#This Row],[2021 Population Estimate]])/RawData3[[#This Row],[2021 Population Estimate]]","v":-9.9009900990099015E-2},0,null,2.8,76250]
["Port Royal town","Beaufort County",12734,14573,{"$f":"(RawData3[[#This Row],[2022 Population Estimate]]-RawData3[[#This Row],[2021 Population Estimate]])/RawData3[[#This Row],[2021 Population Estimate]]","v":0.14441652269514685},9,null,3.1,68909]
["Powdersville CDP","Anderson County",9880,10678,{"$f":"(RawData3[[#This Row],[2022 Population Estimate]]-RawData3[[#This Row],[2021 Population Estimate]])/RawData3[[#This Row],[2021 Population Estimate]]","v":8.0769230769230774E-2},11,null,3,81375]
["Princeton CDP","Laurens County",64,78,{"$f":"(RawData3[[#This Row],[2022 Population Estimate]]-RawData3[[#This Row],[2021 Population Estimate]])/RawData3[[#This Row],[2021 Population Estimate]]","v":0.21875},0,null,3.4,52077]
["Privateer CDP","Sumter County",1964,2191,{"$f":"(RawData3[[#This Row],[2022 Population Estimate]]-RawData3[[#This Row],[2021 Population Estimate]])/RawData3[[#This Row],[2021 Population Estimate]]","v":0.11558044806517312},12,null,3.8,59116]
["Promised Land CDP","Greenwood County",390,334,{"$f":"(RawData3[[#This Row],[2022 Population Estimate]]-RawData3[[#This Row],[2021 Population Estimate]])/RawData3[[#This Row],[2021 Population Estimate]]","v":-0.14358974358974358},12.9,null,3.7,56475]
["Prosperity town","Newberry County",1203,1139,{"$f":"(RawData3[[#This Row],[2022 Population Estimate]]-RawData3[[#This Row],[2021 Population Estimate]])/RawData3[[#This Row],[2021 Population Estimate]]","v":-5.3200332502078139E-2},14.2,null,2.8,56622]
["Quinby town","Florence County",975,897,{"$f":"(RawData3[[#This Row],[2022 Population Estimate]]-RawData3[[#This Row],[2021 Population Estimate]])/RawData3[[#This Row],[2021 Population Estimate]]","v":-0.08},14,null,3.2,63021]
["Ravenel town","Charleston County",2543,2572,{"$f":"(RawData3[[#This Row],[2022 Population Estimate]]-RawData3[[#This Row],[2021 Population Estimate]])/RawData3[[#This Row],[2021 Population Estimate]]","v":1.1403853716083366E-2},16.3,null,2.8,70956]
["Red Bank CDP","Lexington County",10070,10544,{"$f":"(RawData3[[#This Row],[2022 Population Estimate]]-RawData3[[#This Row],[2021 Population Estimate]])/RawData3[[#This Row],[2021 Population Estimate]]","v":4.7070506454816287E-2},12,null,2.7,60700]
["Red Hill CDP","Horry County",16060,15585,{"$f":"(RawData3[[#This Row],[2022 Population Estimate]]-RawData3[[#This Row],[2021 Population Estimate]])/RawData3[[#This Row],[2021 Population Estimate]]","v":-2.9576587795765878E-2},20.6,null,3.9,56204]
["Reevesville town","Dorchester County",317,272,{"$f":"(RawData3[[#This Row],[2022 Population Estimate]]-RawData3[[#This Row],[2021 Population Estimate]])/RawData3[[#This Row],[2021 Population Estimate]]","v":-0.14195583596214512},9.9,null,2.9,57031]
["Reidville town","Spartanburg County",1569,1734,{"$f":"(RawData3[[#This Row],[2022 Population Estimate]]-RawData3[[#This Row],[2021 Population Estimate]])/RawData3[[#This Row],[2021 Population Estimate]]","v":0.10516252390057361},5.9,null,3.1,115972]
["Rembert CDP","Sumter County",214,255,{"$f":"(RawData3[[#This Row],[2022 Population Estimate]]-RawData3[[#This Row],[2021 Population Estimate]])/RawData3[[#This Row],[2021 Population Estimate]]","v":0.19158878504672897},0,null,3.8,57778]
["Richburg town","Chester County",299,354,{"$f":"(RawData3[[#This Row],[2022 Population Estimate]]-RawData3[[#This Row],[2021 Population Estimate]])/RawData3[[#This Row],[2021 Population Estimate]]","v":0.18394648829431437},27.7,null,4.3,50022]
["Ridge Spring town","Saluda County",607,720,{"$f":"(RawData3[[#This Row],[2022 Population Estimate]]-RawData3[[#This Row],[2021 Population Estimate]])/RawData3[[#This Row],[2021 Population Estimate]]","v":0.18616144975288304},17.3,null,2.9,37969]
["Ridgeland town","Beaufort County",3664,3737,{"$f":"(RawData3[[#This Row],[2022 Population Estimate]]-RawData3[[#This Row],[2021 Population Estimate]])/RawData3[[#This Row],[2021 Population Estimate]]","v":1.9923580786026202E-2},22.1,null,3.1,55729]
["Ridgeville town","Dorchester County",1592,1548,{"$f":"(RawData3[[#This Row],[2022 Population Estimate]]-RawData3[[#This Row],[2021 Population Estimate]])/RawData3[[#This Row],[2021 Population Estimate]]","v":-2.7638190954773871E-2},17.8,null,2.9,52864]
["Ridgeway town","Fairfield County",317,251,{"$f":"(RawData3[[#This Row],[2022 Population Estimate]]-RawData3[[#This Row],[2021 Population Estimate]])/RawData3[[#This Row],[2021 Population Estimate]]","v":-0.20820189274447951},39.4,null,4.7,40500]
["Riverview CDP","York County",1989,2010,{"$f":"(RawData3[[#This Row],[2022 Population Estimate]]-RawData3[[#This Row],[2021 Population Estimate]])/RawData3[[#This Row],[2021 Population Estimate]]","v":1.0558069381598794E-2},4.3,null,3.1,125897]
["Rock Hill city","York County",72883,74170,{"$f":"(RawData3[[#This Row],[2022 Population Estimate]]-RawData3[[#This Row],[2021 Population Estimate]])/RawData3[[#This Row],[2021 Population Estimate]]","v":1.7658438867774379E-2},13,null,3.6,60807]
["Rockville town","Charleston County",123,113,{"$f":"(RawData3[[#This Row],[2022 Population Estimate]]-RawData3[[#This Row],[2021 Population Estimate]])/RawData3[[#This Row],[2021 Population Estimate]]","v":-8.1300813008130079E-2},2.7,null,2.8,75625]
["Roebuck CDP","Spartanburg County",3482,3837,{"$f":"(RawData3[[#This Row],[2022 Population Estimate]]-RawData3[[#This Row],[2021 Population Estimate]])/RawData3[[#This Row],[2021 Population Estimate]]","v":0.10195290063182079},6.5,null,3.1,58738]
["Rowesville town","Orangeburg County",427,388,{"$f":"(RawData3[[#This Row],[2022 Population Estimate]]-RawData3[[#This Row],[2021 Population Estimate]])/RawData3[[#This Row],[2021 Population Estimate]]","v":-9.1334894613583142E-2},17.8,null,5,27065]
["Ruby town","Chesterfield County",276,359,{"$f":"(RawData3[[#This Row],[2022 Population Estimate]]-RawData3[[#This Row],[2021 Population Estimate]])/RawData3[[#This Row],[2021 Population Estimate]]","v":0.30072463768115942},15.6,null,3.6,37083]
["Russellville CDP","Berkeley County",369,280,{"$f":"(RawData3[[#This Row],[2022 Population Estimate]]-RawData3[[#This Row],[2021 Population Estimate]])/RawData3[[#This Row],[2021 Population Estimate]]","v":-0.24119241192411925},16.399999999999999,null,3.1,74519]
["Salem town","Oconee County",150,145,{"$f":"(RawData3[[#This Row],[2022 Population Estimate]]-RawData3[[#This Row],[2021 Population Estimate]])/RawData3[[#This Row],[2021 Population Estimate]]","v":-3.3333333333333333E-2},6.3,null,3.1,61250]
["Salley town","Aiken County",270,297,{"$f":"(RawData3[[#This Row],[2022 Population Estimate]]-RawData3[[#This Row],[2021 Population Estimate]])/RawData3[[#This Row],[2021 Population Estimate]]","v":0.1},37,null,3.2,31500]
["Saluda town","Saluda County",3179,3124,{"$f":"(RawData3[[#This Row],[2022 Population Estimate]]-RawData3[[#This Row],[2021 Population Estimate]])/RawData3[[#This Row],[2021 Population Estimate]]","v":-1.7301038062283738E-2},40.1,null,2.9,32986]
["Sangaree CDP","Berkeley County",9336,8680,{"$f":"(RawData3[[#This Row],[2022 Population Estimate]]-RawData3[[#This Row],[2021 Population Estimate]])/RawData3[[#This Row],[2021 Population Estimate]]","v":-7.0265638389031701E-2},11.5,null,3.1,74343]
["Sans Souci CDP","Greenville County",8421,8042,{"$f":"(RawData3[[#This Row],[2022 Population Estimate]]-RawData3[[#This Row],[2021 Population Estimate]])/RawData3[[#This Row],[2021 Population Estimate]]","v":-4.5006531290820564E-2},14.9,null,2.8,40995]
["Santee town","Orangeburg County",1029,1189,{"$f":"(RawData3[[#This Row],[2022 Population Estimate]]-RawData3[[#This Row],[2021 Population Estimate]])/RawData3[[#This Row],[2021 Population Estimate]]","v":0.1554907677356657},29.5,null,5,43000]
["Saxon CDP","Spartanburg County",4007,4171,{"$f":"(RawData3[[#This Row],[2022 Population Estimate]]-RawData3[[#This Row],[2021 Population Estimate]])/RawData3[[#This Row],[2021 Population Estimate]]","v":4.0928375343149491E-2},48.7,null,3.1,25231]
["Scotia town","Hampton County",169,111,{"$f":"(RawData3[[#This Row],[2022 Population Estimate]]-RawData3[[#This Row],[2021 Population Estimate]])/RawData3[[#This Row],[2021 Population Estimate]]","v":-0.34319526627218933},17.100000000000001,null,2.9,40157]
["Scranton town","Florence County",832,897,{"$f":"(RawData3[[#This Row],[2022 Population Estimate]]-RawData3[[#This Row],[2021 Population Estimate]])/RawData3[[#This Row],[2021 Population Estimate]]","v":7.8125E-2},28.5,null,3.2,28750]
["Seabrook Island town","Charleston County",1904,2062,{"$f":"(RawData3[[#This Row],[2022 Population Estimate]]-RawData3[[#This Row],[2021 Population Estimate]])/RawData3[[#This Row],[2021 Population Estimate]]","v":8.2983193277310921E-2},5.8,null,2.8,117386]
["Sellers town","Marion County",144,133,{"$f":"(RawData3[[#This Row],[2022 Population Estimate]]-RawData3[[#This Row],[2021 Population Estimate]])/RawData3[[#This Row],[2021 Population Estimate]]","v":-7.6388888888888895E-2},61.7,null,4.9000000000000004,31667]
["Seneca city","Oconee County",8734,8834,{"$f":"(RawData3[[#This Row],[2022 Population Estimate]]-RawData3[[#This Row],[2021 Population Estimate]])/RawData3[[#This Row],[2021 Population Estimate]]","v":1.144950767117014E-2},16.8,null,3.1,48108]
["Seven Oaks CDP","Lexington County",15561,15826,{"$f":"(RawData3[[#This Row],[2022 Population Estimate]]-RawData3[[#This Row],[2021 Population Estimate]])/RawData3[[#This Row],[2021 Population Estimate]]","v":1.7029753871859135E-2},10.3,null,2.7,61615]
["Sharon town","York County",442,411,{"$f":"(RawData3[[#This Row],[2022 Population Estimate]]-RawData3[[#This Row],[2021 Population Estimate]])/RawData3[[#This Row],[2021 Population Estimate]]","v":-7.0135746606334842E-2},20.9,null,3.1,41250]
["Shell Point CDP","Beaufort County",2479,2026,{"$f":"(RawData3[[#This Row],[2022 Population Estimate]]-RawData3[[#This Row],[2021 Population Estimate]])/RawData3[[#This Row],[2021 Population Estimate]]","v":-0.1827349737797499},14.5,null,3.1,60676]
["Shiloh CDP","Florence County",188,195,{"$f":"(RawData3[[#This Row],[2022 Population Estimate]]-RawData3[[#This Row],[2021 Population Estimate]])/RawData3[[#This Row],[2021 Population Estimate]]","v":3.7234042553191488E-2},0,null,3.2,78438]
["Silverstreet town","Newberry County",143,147,{"$f":"(RawData3[[#This Row],[2022 Population Estimate]]-RawData3[[#This Row],[2021 Population Estimate]])/RawData3[[#This Row],[2021 Population Estimate]]","v":2.7972027972027972E-2},6.8,null,2.8,97500]
["Simpsonville city","Greenville County",23190,24133,{"$f":"(RawData3[[#This Row],[2022 Population Estimate]]-RawData3[[#This Row],[2021 Population Estimate]])/RawData3[[#This Row],[2021 Population Estimate]]","v":4.0664079344545065E-2},6.4,null,2.8,79937]
["Six Mile town","Pickens County",1185,1086,{"$f":"(RawData3[[#This Row],[2022 Population Estimate]]-RawData3[[#This Row],[2021 Population Estimate]])/RawData3[[#This Row],[2021 Population Estimate]]","v":-8.3544303797468356E-2},7.1,null,3.1,103750]
["Slater-Marietta CDP","Greenville County",1874,2199,{"$f":"(RawData3[[#This Row],[2022 Population Estimate]]-RawData3[[#This Row],[2021 Population Estimate]])/RawData3[[#This Row],[2021 Population Estimate]]","v":0.17342582710779081},20.100000000000001,null,2.8,46797]
["Smoaks town","Colleton County",127,125,{"$f":"(RawData3[[#This Row],[2022 Population Estimate]]-RawData3[[#This Row],[2021 Population Estimate]])/RawData3[[#This Row],[2021 Population Estimate]]","v":-1.5748031496062992E-2},2.4,null,3.5,65417]
["Smyrna town","Cherokee County",25,28,{"$f":"(RawData3[[#This Row],[2022 Population Estimate]]-RawData3[[#This Row],[2021 Population Estimate]])/RawData3[[#This Row],[2021 Population Estimate]]","v":0.12},3.6,null,4.0999999999999996,47011]
["Snelling town","Barnwell County",306,262,{"$f":"(RawData3[[#This Row],[2022 Population Estimate]]-RawData3[[#This Row],[2021 Population Estimate]])/RawData3[[#This Row],[2021 Population Estimate]]","v":-0.1437908496732026},8.5,null,4.7,56607]
["Socastee CDP","Horry County",24657,24464,{"$f":"(RawData3[[#This Row],[2022 Population Estimate]]-RawData3[[#This Row],[2021 Population Estimate]])/RawData3[[#This Row],[2021 Population Estimate]]","v":-7.827391815711562E-3},13.8,null,3.9,54405]
["Society Hill town","Darlington County",423,415,{"$f":"(RawData3[[#This Row],[2022 Population Estimate]]-RawData3[[#This Row],[2021 Population Estimate]])/RawData3[[#This Row],[2021 Population Estimate]]","v":-1.8912529550827423E-2},11.6,null,3.5,31518]
["South Congaree town","Lexington County",2613,2256,{"$f":"(RawData3[[#This Row],[2022 Population Estimate]]-RawData3[[#This Row],[2021 Population Estimate]])/RawData3[[#This Row],[2021 Population Estimate]]","v":-0.13662456946039037},9.3000000000000007,null,2.7,55636]
["South Sumter CDP","Sumter County",1755,1564,{"$f":"(RawData3[[#This Row],[2022 Population Estimate]]-RawData3[[#This Row],[2021 Population Estimate]])/RawData3[[#This Row],[2021 Population Estimate]]","v":-0.10883190883190884},22.9,null,3.8,40039]
["Southern Shops CDP","Spartanburg County",4264,3856,{"$f":"(RawData3[[#This Row],[2022 Population Estimate]]-RawData3[[#This Row],[2021 Population Estimate]])/RawData3[[#This Row],[2021 Population Estimate]]","v":-9.5684803001876179E-2},45.3,null,3.1,32500]
["Spartanburg city","Spartanburg County",37990,38301,{"$f":"(RawData3[[#This Row],[2022 Population Estimate]]-RawData3[[#This Row],[2021 Population Estimate]])/RawData3[[#This Row],[2021 Population Estimate]]","v":8.18636483285075E-3},25.7,null,3.8,49140]
["Springdale CDP","Lancaster County",2593,2580,{"$f":"(RawData3[[#This Row],[2022 Population Estimate]]-RawData3[[#This Row],[2021 Population Estimate]])/RawData3[[#This Row],[2021 Population Estimate]]","v":-5.0134978789047437E-3},8.1,null,3.6,60404]
["Springdale town","Lexington County",2731,2711,{"$f":"(RawData3[[#This Row],[2022 Population Estimate]]-RawData3[[#This Row],[2021 Population Estimate]])/RawData3[[#This Row],[2021 Population Estimate]]","v":-7.3233247894544124E-3},7.7,null,2.7,70880]
["Springfield town","Orangeburg County",546,482,{"$f":"(RawData3[[#This Row],[2022 Population Estimate]]-RawData3[[#This Row],[2021 Population Estimate]])/RawData3[[#This Row],[2021 Population Estimate]]","v":-0.11721611721611722},35.9,null,5,32266]
["St. Andrews CDP","Lexington County",21383,21909,{"$f":"(RawData3[[#This Row],[2022 Population Estimate]]-RawData3[[#This Row],[2021 Population Estimate]])/RawData3[[#This Row],[2021 Population Estimate]]","v":2.4598980498526869E-2},24.3,null,2.7,43273]
["St. George town","Dorchester County",2185,1901,{"$f":"(RawData3[[#This Row],[2022 Population Estimate]]-RawData3[[#This Row],[2021 Population Estimate]])/RawData3[[#This Row],[2021 Population Estimate]]","v":-0.1299771167048055},36.6,null,2.9,28490]
["St. Matthews town","Calhoun County",2038,1932,{"$f":"(RawData3[[#This Row],[2022 Population Estimate]]-RawData3[[#This Row],[2021 Population Estimate]])/RawData3[[#This Row],[2021 Population Estimate]]","v":-5.2011776251226695E-2},40.200000000000003,null,3.5,35950]
["St. Stephen town","Berkeley County",1454,1386,{"$f":"(RawData3[[#This Row],[2022 Population Estimate]]-RawData3[[#This Row],[2021 Population Estimate]])/RawData3[[#This Row],[2021 Population Estimate]]","v":-4.676753782668501E-2},39.200000000000003,null,3.1,37596]
["Starr town","Anderson County",149,194,{"$f":"(RawData3[[#This Row],[2022 Population Estimate]]-RawData3[[#This Row],[2021 Population Estimate]])/RawData3[[#This Row],[2021 Population Estimate]]","v":0.30201342281879195},26.3,null,3,49167]
["Startex CDP","Spartanburg County",338,553,{"$f":"(RawData3[[#This Row],[2022 Population Estimate]]-RawData3[[#This Row],[2021 Population Estimate]])/RawData3[[#This Row],[2021 Population Estimate]]","v":0.63609467455621305},0,null,3.1,44353]
["Stateburg CDP","Sumter County",1739,1739,{"$f":"(RawData3[[#This Row],[2022 Population Estimate]]-RawData3[[#This Row],[2021 Population Estimate]])/RawData3[[#This Row],[2021 Population Estimate]]","v":0},4,null,3.8,68935]
["Stuckey town","Williamsburg County",349,243,{"$f":"(RawData3[[#This Row],[2022 Population Estimate]]-RawData3[[#This Row],[2021 Population Estimate]])/RawData3[[#This Row],[2021 Population Estimate]]","v":-0.30372492836676218},12.8,null,4.8,40848]
["Sullivan's Island town","Charleston County",2220,2317,{"$f":"(RawData3[[#This Row],[2022 Population Estimate]]-RawData3[[#This Row],[2021 Population Estimate]])/RawData3[[#This Row],[2021 Population Estimate]]","v":4.3693693693693691E-2},10.1,null,2.8,171838]
["Summerton town","Clarendon County",735,714,{"$f":"(RawData3[[#This Row],[2022 Population Estimate]]-RawData3[[#This Row],[2021 Population Estimate]])/RawData3[[#This Row],[2021 Population Estimate]]","v":-2.8571428571428571E-2},22.7,null,4.0999999999999996,36164]
["Summerville town","Dorchester County",50318,50839,{"$f":"(RawData3[[#This Row],[2022 Population Estimate]]-RawData3[[#This Row],[2021 Population Estimate]])/RawData3[[#This Row],[2021 Population Estimate]]","v":1.0354147621129616E-2},10.8,null,2.9,73712]
["Summit town","Lexington County",524,539,{"$f":"(RawData3[[#This Row],[2022 Population Estimate]]-RawData3[[#This Row],[2021 Population Estimate]])/RawData3[[#This Row],[2021 Population Estimate]]","v":2.8625954198473282E-2},6.7,null,2.7,72250]
["Sumter city","Sumter County",42920,43046,{"$f":"(RawData3[[#This Row],[2022 Population Estimate]]-RawData3[[#This Row],[2021 Population Estimate]])/RawData3[[#This Row],[2021 Population Estimate]]","v":2.9356943150046599E-3},17.5,null,4.0999999999999996,48900]
["Surfside Beach town","Horry County",4155,4179,{"$f":"(RawData3[[#This Row],[2022 Population Estimate]]-RawData3[[#This Row],[2021 Population Estimate]])/RawData3[[#This Row],[2021 Population Estimate]]","v":5.7761732851985556E-3},10.6,null,3.9,69375]
["Swansea town","Lexington County",777,739,{"$f":"(RawData3[[#This Row],[2022 Population Estimate]]-RawData3[[#This Row],[2021 Population Estimate]])/RawData3[[#This Row],[2021 Population Estimate]]","v":-4.8906048906048903E-2},21.9,null,2.7,41823]
["Sycamore town","Allendale County",114,94,{"$f":"(RawData3[[#This Row],[2022 Population Estimate]]-RawData3[[#This Row],[2021 Population Estimate]])/RawData3[[#This Row],[2021 Population Estimate]]","v":-0.17543859649122806},22.3,null,5.7,25000]
["Tatum town","Marlboro County",102,72,{"$f":"(RawData3[[#This Row],[2022 Population Estimate]]-RawData3[[#This Row],[2021 Population Estimate]])/RawData3[[#This Row],[2021 Population Estimate]]","v":-0.29411764705882354},6.9,null,6.5,27125]
["Taylors CDP","Greenville County",23348,23005,{"$f":"(RawData3[[#This Row],[2022 Population Estimate]]-RawData3[[#This Row],[2021 Population Estimate]])/RawData3[[#This Row],[2021 Population Estimate]]","v":-1.469076580435155E-2},8.1999999999999993,null,2.8,70234]
["Tega Cay city","York County",12336,12816,{"$f":"(RawData3[[#This Row],[2022 Population Estimate]]-RawData3[[#This Row],[2021 Population Estimate]])/RawData3[[#This Row],[2021 Population Estimate]]","v":3.8910505836575876E-2},0.4,null,3.1,140172]
["Tigerville CDP","Greenville County",2025,2122,{"$f":"(RawData3[[#This Row],[2022 Population Estimate]]-RawData3[[#This Row],[2021 Population Estimate]])/RawData3[[#This Row],[2021 Population Estimate]]","v":4.7901234567901234E-2},8.9,null,2.8,71328]
["Timmonsville town","Florence County",2158,2119,{"$f":"(RawData3[[#This Row],[2022 Population Estimate]]-RawData3[[#This Row],[2021 Population Estimate]])/RawData3[[#This Row],[2021 Population Estimate]]","v":-1.8072289156626505E-2},38.9,null,3.2,24758]
["Travelers Rest city","Greenville County",7670,7929,{"$f":"(RawData3[[#This Row],[2022 Population Estimate]]-RawData3[[#This Row],[2021 Population Estimate]])/RawData3[[#This Row],[2021 Population Estimate]]","v":3.3767926988265973E-2},23.8,null,2.8,44375]
["Trenton town","Edgefield County",346,309,{"$f":"(RawData3[[#This Row],[2022 Population Estimate]]-RawData3[[#This Row],[2021 Population Estimate]])/RawData3[[#This Row],[2021 Population Estimate]]","v":-0.1069364161849711},17.5,null,3.3,50156]
["Troy town","Greenwood County",154,165,{"$f":"(RawData3[[#This Row],[2022 Population Estimate]]-RawData3[[#This Row],[2021 Population Estimate]])/RawData3[[#This Row],[2021 Population Estimate]]","v":7.1428571428571425E-2},3,null,3.7,43750]
["Turbeville town","Clarendon County",714,710,{"$f":"(RawData3[[#This Row],[2022 Population Estimate]]-RawData3[[#This Row],[2021 Population Estimate]])/RawData3[[#This Row],[2021 Population Estimate]]","v":-5.6022408963585435E-3},28,null,4.0999999999999996,40000]
["Ulmer town","Allendale County",85,92,{"$f":"(RawData3[[#This Row],[2022 Population Estimate]]-RawData3[[#This Row],[2021 Population Estimate]])/RawData3[[#This Row],[2021 Population Estimate]]","v":8.2352941176470587E-2},6.5,null,5.7,59688]
["Union city","Union County",8119,8099,{"$f":"(RawData3[[#This Row],[2022 Population Estimate]]-RawData3[[#This Row],[2021 Population Estimate]])/RawData3[[#This Row],[2021 Population Estimate]]","v":-2.4633575563493041E-3},25.4,null,4.7,32548]
["Utica CDP","Oconee County",1729,1654,{"$f":"(RawData3[[#This Row],[2022 Population Estimate]]-RawData3[[#This Row],[2021 Population Estimate]])/RawData3[[#This Row],[2021 Population Estimate]]","v":-4.3377674956622328E-2},25.3,null,3.1,56710]
["Valley Falls CDP","Spartanburg County",7583,7104,{"$f":"(RawData3[[#This Row],[2022 Population Estimate]]-RawData3[[#This Row],[2021 Population Estimate]])/RawData3[[#This Row],[2021 Population Estimate]]","v":-6.3167611763154427E-2},25.1,null,3.1,47695]
["Van Wyck town","Lancaster County",813,873,{"$f":"(RawData3[[#This Row],[2022 Population Estimate]]-RawData3[[#This Row],[2021 Population Estimate]])/RawData3[[#This Row],[2021 Population Estimate]]","v":7.3800738007380073E-2},4,null,3.6,72186]
["Vance town","Orangeburg County",83,92,{"$f":"(RawData3[[#This Row],[2022 Population Estimate]]-RawData3[[#This Row],[2021 Population Estimate]])/RawData3[[#This Row],[2021 Population Estimate]]","v":0.10843373493975904},26.1,null,5,41020]
["Varnville town","Hampton County",1954,2173,{"$f":"(RawData3[[#This Row],[2022 Population Estimate]]-RawData3[[#This Row],[2021 Population Estimate]])/RawData3[[#This Row],[2021 Population Estimate]]","v":0.1120777891504606},22.3,null,2.9,38092]
["Wade Hampton CDP","Greenville County",20879,21029,{"$f":"(RawData3[[#This Row],[2022 Population Estimate]]-RawData3[[#This Row],[2021 Population Estimate]])/RawData3[[#This Row],[2021 Population Estimate]]","v":7.1842521193543748E-3},9.4,null,2.8,71564]
["Wagener town","Aiken County",1357,1030,{"$f":"(RawData3[[#This Row],[2022 Population Estimate]]-RawData3[[#This Row],[2021 Population Estimate]])/RawData3[[#This Row],[2021 Population Estimate]]","v":-0.24097273397199706},21.2,null,3.2,43846]
["Walhalla city","Oconee County",4076,4102,{"$f":"(RawData3[[#This Row],[2022 Population Estimate]]-RawData3[[#This Row],[2021 Population Estimate]])/RawData3[[#This Row],[2021 Population Estimate]]","v":6.3788027477919527E-3},33.5,null,3.1,40176]
["Wallace CDP","Marlboro County",677,662,{"$f":"(RawData3[[#This Row],[2022 Population Estimate]]-RawData3[[#This Row],[2021 Population Estimate]])/RawData3[[#This Row],[2021 Population Estimate]]","v":-2.2156573116691284E-2},15.1,null,6.5,19423]
["Walterboro city","Colleton County",5514,5515,{"$f":"(RawData3[[#This Row],[2022 Population Estimate]]-RawData3[[#This Row],[2021 Population Estimate]])/RawData3[[#This Row],[2021 Population Estimate]]","v":1.8135654697134566E-4},22.7,null,3.5,46119]
["Ward town","Saluda County",217,252,{"$f":"(RawData3[[#This Row],[2022 Population Estimate]]-RawData3[[#This Row],[2021 Population Estimate]])/RawData3[[#This Row],[2021 Population Estimate]]","v":0.16129032258064516},30.2,null,2.9,51041]
["Ware Place CDP","Greenville County",121,96,{"$f":"(RawData3[[#This Row],[2022 Population Estimate]]-RawData3[[#This Row],[2021 Population Estimate]])/RawData3[[#This Row],[2021 Population Estimate]]","v":-0.20661157024793389},8.3000000000000007,null,2.8,88542]
["Ware Shoals town","Greenwood County",2022,1934,{"$f":"(RawData3[[#This Row],[2022 Population Estimate]]-RawData3[[#This Row],[2021 Population Estimate]])/RawData3[[#This Row],[2021 Population Estimate]]","v":-4.3521266073194856E-2},48,null,3.7,32754]
["Warrenville CDP","Aiken County",715,786,{"$f":"(RawData3[[#This Row],[2022 Population Estimate]]-RawData3[[#This Row],[2021 Population Estimate]])/RawData3[[#This Row],[2021 Population Estimate]]","v":9.9300699300699305E-2},8.5,null,3.2,38547]
["Waterloo town","Laurens County",206,244,{"$f":"(RawData3[[#This Row],[2022 Population Estimate]]-RawData3[[#This Row],[2021 Population Estimate]])/RawData3[[#This Row],[2021 Population Estimate]]","v":0.18446601941747573},44.7,null,3.4,40500]
["Watts Mills CDP","Laurens County",2157,2013,{"$f":"(RawData3[[#This Row],[2022 Population Estimate]]-RawData3[[#This Row],[2021 Population Estimate]])/RawData3[[#This Row],[2021 Population Estimate]]","v":-6.6759388038942977E-2},30.7,null,3.4,43401]
["Wedgefield CDP","Sumter County",1994,2050,{"$f":"(RawData3[[#This Row],[2022 Population Estimate]]-RawData3[[#This Row],[2021 Population Estimate]])/RawData3[[#This Row],[2021 Population Estimate]]","v":2.8084252758274825E-2},19.2,null,3.8,39750]
["Welcome CDP","Anderson County",7462,7153,{"$f":"(RawData3[[#This Row],[2022 Population Estimate]]-RawData3[[#This Row],[2021 Population Estimate]])/RawData3[[#This Row],[2021 Population Estimate]]","v":-4.1409809702492632E-2},10.7,null,3,47730]
["Wellford city","Spartanburg County",3217,3330,{"$f":"(RawData3[[#This Row],[2022 Population Estimate]]-RawData3[[#This Row],[2021 Population Estimate]])/RawData3[[#This Row],[2021 Population Estimate]]","v":3.5125893689773077E-2},18.3,null,3.1,53221]
["West Columbia city","Lexington County",17265,17459,{"$f":"(RawData3[[#This Row],[2022 Population Estimate]]-RawData3[[#This Row],[2021 Population Estimate]])/RawData3[[#This Row],[2021 Population Estimate]]","v":1.123660584998552E-2},14.2,null,2.7,52648]
["West Pelzer town","Anderson County",1136,1155,{"$f":"(RawData3[[#This Row],[2022 Population Estimate]]-RawData3[[#This Row],[2021 Population Estimate]])/RawData3[[#This Row],[2021 Population Estimate]]","v":1.6725352112676055E-2},21.3,null,3,43214]
["West Union town","Oconee County",384,422,{"$f":"(RawData3[[#This Row],[2022 Population Estimate]]-RawData3[[#This Row],[2021 Population Estimate]])/RawData3[[#This Row],[2021 Population Estimate]]","v":9.8958333333333329E-2},11.6,null,3.1,46875]
["Westminster city","Oconee County",2385,2215,{"$f":"(RawData3[[#This Row],[2022 Population Estimate]]-RawData3[[#This Row],[2021 Population Estimate]])/RawData3[[#This Row],[2021 Population Estimate]]","v":-7.1278825995807121E-2},26.5,null,3.1,40750]
["Whitmire town","Newberry County",1503,1255,{"$f":"(RawData3[[#This Row],[2022 Population Estimate]]-RawData3[[#This Row],[2021 Population Estimate]])/RawData3[[#This Row],[2021 Population Estimate]]","v":-0.16500332667997339},24.3,null,2.8,32813]
["Wilkinson Heights CDP","Orangeburg County",1995,1919,{"$f":"(RawData3[[#This Row],[2022 Population Estimate]]-RawData3[[#This Row],[2021 Population Estimate]])/RawData3[[#This Row],[2021 Population Estimate]]","v":-3.8095238095238099E-2},33.9,null,5,22730]
["Williams town","Colleton County",169,203,{"$f":"(RawData3[[#This Row],[2022 Population Estimate]]-RawData3[[#This Row],[2021 Population Estimate]])/RawData3[[#This Row],[2021 Population Estimate]]","v":0.20118343195266272},46.8,null,3.5,39844]
["Williamston town","Anderson County",4047,4072,{"$f":"(RawData3[[#This Row],[2022 Population Estimate]]-RawData3[[#This Row],[2021 Population Estimate]])/RawData3[[#This Row],[2021 Population Estimate]]","v":6.1774153694094391E-3},12.7,null,3,62425]
["Willington CDP","McCormick County",70,80,{"$f":"(RawData3[[#This Row],[2022 Population Estimate]]-RawData3[[#This Row],[2021 Population Estimate]])/RawData3[[#This Row],[2021 Population Estimate]]","v":0.14285714285714285},100,null,3.6,55569]
["Williston town","Barnwell County",2909,2877,{"$f":"(RawData3[[#This Row],[2022 Population Estimate]]-RawData3[[#This Row],[2021 Population Estimate]])/RawData3[[#This Row],[2021 Population Estimate]]","v":-1.1000343760742524E-2},25.2,null,4.7,37398]
["Windsor town","Aiken County",259,294,{"$f":"(RawData3[[#This Row],[2022 Population Estimate]]-RawData3[[#This Row],[2021 Population Estimate]])/RawData3[[#This Row],[2021 Population Estimate]]","v":0.13513513513513514},4.4000000000000004,null,3.2,95625]
["Winnsboro Mills CDP","Fairfield County",2048,1682,{"$f":"(RawData3[[#This Row],[2022 Population Estimate]]-RawData3[[#This Row],[2021 Population Estimate]])/RawData3[[#This Row],[2021 Population Estimate]]","v":-0.1787109375},25.1,null,4.7,34708]
["Winnsboro town","Fairfield County",3234,3239,{"$f":"(RawData3[[#This Row],[2022 Population Estimate]]-RawData3[[#This Row],[2021 Population Estimate]])/RawData3[[#This Row],[2021 Population Estimate]]","v":1.5460729746444033E-3},28.7,null,4.7,31194]
["Woodfield CDP","Richland County",8970,9466,{"$f":"(RawData3[[#This Row],[2022 Population Estimate]]-RawData3[[#This Row],[2021 Population Estimate]])/RawData3[[#This Row],[2021 Population Estimate]]","v":5.5295429208472684E-2},21.7,null,3.3,39867]
["Woodford town","Orangeburg County",140,163,{"$f":"(RawData3[[#This Row],[2022 Population Estimate]]-RawData3[[#This Row],[2021 Population Estimate]])/RawData3[[#This Row],[2021 Population Estimate]]","v":0.16428571428571428},11,null,5,41875]
["Woodruff city","Spartanburg County",4178,4262,{"$f":"(RawData3[[#This Row],[2022 Population Estimate]]-RawData3[[#This Row],[2021 Population Estimate]])/RawData3[[#This Row],[2021 Population Estimate]]","v":2.0105313547151747E-2},12.5,null,3.1,68451]
["Yemassee town","Beaufort County",666,974,{"$f":"(RawData3[[#This Row],[2022 Population Estimate]]-RawData3[[#This Row],[2021 Population Estimate]])/RawData3[[#This Row],[2021 Population Estimate]]","v":0.46246246246246248},21.8,null,3.1,45323]
["York city","York County",8423,8534,{"$f":"(RawData3[[#This Row],[2022 Population Estimate]]-RawData3[[#This Row],[2021 Population Estimate]])/RawData3[[#This Row],[2021 Population Estimate]]","v":1.3178202540662471E-2},17.399999999999999,null,3.1,50177]